Workbook

Sheet Provincial uniformisé
A2: DONNÉES DE L'ÉVALUATION FONCIÈRE
A5: CATÉGORIE (Utilisation) | D5: VALEURS IMPOSABLES | H5: VALEURS NON IMPOSABLES
D6: NOMBRE | E6: TERRAINS | F6: BÂTIMENTS | G6: IMMEUBLES | H6: NOMBRE | I6: TERRAINS | J6: BÂTIMENTS | K6: IMMEUBLES
A7: 1-- TOTALE DE LA CATÉGORIE RÉSIDENTIELLE | D7: =IFERROR(VLOOKUP('Pilotage charte de postes'!D6*10+1,Tableau_Lancer_la_requête_à_partir_de_apps_U_B11_1[],2,FALSE),"") -> 2808549 | E7: =IFERROR(VLOOKUP('Pilotage charte de postes'!E6*10+1,Tableau_Lancer_la_requête_à_partir_de_apps_U_B11_1[],2,FALSE),"") -> 329109301432 | F7: =IFERROR(VLOOKUP('Pilotage charte de postes'!F6*10+1,Tableau_Lancer_la_requête_à_partir_de_apps_U_B11_1[],2,FALSE),"") -> 690740840557 | G7: =IFERROR(VLOOKUP('Pilotage charte de postes'!H6*10+1,Tableau_Lancer_la_requête_à_partir_de_apps_U_B11_1[],2,FALSE),"") -> 1019850141989 | H7: =IFERROR(VLOOKUP('Pilotage charte de postes'!I6*10+1,Tableau_Lancer_la_requête_à_partir_de_apps_U_B11_1[],2,FALSE),"") -> 4917 | I7: =IFERROR(VLOOKUP('Pilotage charte de postes'!J6*10+1,Tableau_Lancer_la_requête_à_partir_de_apps_U_B11_1[],2,FALSE),"") -> 2399813449 | J7: =IFERROR(VLOOKUP('Pilotage charte de postes'!K6*10+1,Tableau_Lancer_la_requête_à_partir_de_apps_U_B11_1[],2,FALSE),"") -> 4626487222 | K7: =IFERROR(VLOOKUP('Pilotage charte de postes'!L6*10+1,Tableau_Lancer_la_requête_à_partir_de_apps_U_B11_1[],2,FALSE),"") -> 7026300672
A8: 10 -- Totale Logements | D8: =IFERROR(VLOOKUP('Pilotage charte de postes'!D7*10+1,Tableau_Lancer_la_requête_à_partir_de_apps_U_B11_1[],2,FALSE),"") -> 2548288 | E8: =IFERROR(VLOOKUP('Pilotage charte de postes'!E7*10+1,Tableau_Lancer_la_requête_à_partir_de_apps_U_B11_1[],2,FALSE),"") -> 312589828499 | F8: =IFERROR(VLOOKUP('Pilotage charte de postes'!F7*10+1,Tableau_Lancer_la_requête_à_partir_de_apps_U_B11_1[],2,FALSE),"") -> 655982778223 | G8: =IFERROR(VLOOKUP('Pilotage charte de postes'!H7*10+1,Tableau_Lancer_la_requête_à_partir_de_apps_U_B11_1[],2,FALSE),"") -> 968572606721 | H8: =IFERROR(VLOOKUP('Pilotage charte de postes'!I7*10+1,Tableau_Lancer_la_requête_à_partir_de_apps_U_B11_1[],2,FALSE),"") -> 1706 | I8: =IFERROR(VLOOKUP('Pilotage charte de postes'!J7*10+1,Tableau_Lancer_la_requête_à_partir_de_apps_U_B11_1[],2,FALSE),"") -> 334399409 | J8: =IFERROR(VLOOKUP('Pilotage charte de postes'!K7*10+1,Tableau_Lancer_la_requête_à_partir_de_apps_U_B11_1[],2,FALSE),"") -> 782383337 | K8: =IFERROR(VLOOKUP('Pilotage charte de postes'!L7*10+1,Tableau_Lancer_la_requête_à_partir_de_apps_U_B11_1[],2,FALSE),"") -> 1116782747
B9: 1 logement « condominium » | D9: =IFERROR(VLOOKUP('Pilotage charte de postes'!D8*10+1,Tableau_Lancer_la_requête_à_partir_de_apps_U_B11_1[],2,FALSE),"") -> 366527 | E9: =IFERROR(VLOOKUP('Pilotage charte de postes'!E8*10+1,Tableau_Lancer_la_requête_à_partir_de_apps_U_B11_1[],2,FALSE),"") -> 23000151149 | F9: =IFERROR(VLOOKUP('Pilotage charte de postes'!F8*10+1,Tableau_Lancer_la_requête_à_partir_de_apps_U_B11_1[],2,FALSE),"") -> 99136414100 | G9: =IFERROR(VLOOKUP('Pilotage charte de postes'!H8*10+1,Tableau_Lancer_la_requête_à_partir_de_apps_U_B11_1[],2,FALSE),"") -> 122136565249 | H9: =IFERROR(VLOOKUP('Pilotage charte de postes'!I8*10+1,Tableau_Lancer_la_requête_à_partir_de_apps_U_B11_1[],2,FALSE),"") -> 6 | I9: =IFERROR(VLOOKUP('Pilotage charte de postes'!J8*10+1,Tableau_Lancer_la_requête_à_partir_de_apps_U_B11_1[],2,FALSE),"") -> 516470 | J9: =IFERROR(VLOOKUP('Pilotage charte de postes'!K8*10+1,Tableau_Lancer_la_requête_à_partir_de_apps_U_B11_1[],2,FALSE),"") -> 1528085 | K9: =IFERROR(VLOOKUP('Pilotage charte de postes'!L8*10+1,Tableau_Lancer_la_requête_à_partir_de_apps_U_B11_1[],2,FALSE),"") -> 2044555
B10: 1 logement « sauf condominium » | D10: =IFERROR(VLOOKUP('Pilotage charte de postes'!D9*10+1,Tableau_Lancer_la_requête_à_partir_de_apps_U_B11_1[],2,FALSE),"") -> 1799690 | E10: =IFERROR(VLOOKUP('Pilotage charte de postes'!E9*10+1,Tableau_Lancer_la_requête_à_partir_de_apps_U_B11_1[],2,FALSE),"") -> 213301050708 | F10: =IFERROR(VLOOKUP('Pilotage charte de postes'!F9*10+1,Tableau_Lancer_la_requête_à_partir_de_apps_U_B11_1[],2,FALSE),"") -> 375768417277 | G10: =IFERROR(VLOOKUP('Pilotage charte de postes'!H9*10+1,Tableau_Lancer_la_requête_à_partir_de_apps_U_B11_1[],2,FALSE),"") -> 589069467985 | H10: =IFERROR(VLOOKUP('Pilotage charte de postes'!I9*10+1,Tableau_Lancer_la_requête_à_partir_de_apps_U_B11_1[],2,FALSE),"") -> 1337 | I10: =IFERROR(VLOOKUP('Pilotage charte de postes'!J9*10+1,Tableau_Lancer_la_requête_à_partir_de_apps_U_B11_1[],2,FALSE),"") -> 133998147 | J10: =IFERROR(VLOOKUP('Pilotage charte de postes'!K9*10+1,Tableau_Lancer_la_requête_à_partir_de_apps_U_B11_1[],2,FALSE),"") -> 231612422 | K10: =IFERROR(VLOOKUP('Pilotage charte de postes'!L9*10+1,Tableau_Lancer_la_requête_à_partir_de_apps_U_B11_1[],2,FALSE),"") -> 365610569
B11: 2 logements | D11: =IFERROR(VLOOKUP('Pilotage charte de postes'!D10*10+1,Tableau_Lancer_la_requête_à_partir_de_apps_U_B11_1[],2,FALSE),"") -> 190439 | E11: =IFERROR(VLOOKUP('Pilotage charte de postes'!E10*10+1,Tableau_Lancer_la_requête_à_partir_de_apps_U_B11_1[],2,FALSE),"") -> 26931266179 | F11: =IFERROR(VLOOKUP('Pilotage charte de postes'!F10*10+1,Tableau_Lancer_la_requête_à_partir_de_apps_U_B11_1[],2,FALSE),"") -> 50378750541 | G11: =IFERROR(VLOOKUP('Pilotage charte de postes'!H10*10+1,Tableau_Lancer_la_requête_à_partir_de_apps_U_B11_1[],2,FALSE),"") -> 77310016720 | H11: =IFERROR(VLOOKUP('Pilotage charte de postes'!I10*10+1,Tableau_Lancer_la_requête_à_partir_de_apps_U_B11_1[],2,FALSE),"") -> 188 | I11: =IFERROR(VLOOKUP('Pilotage charte de postes'!J10*10+1,Tableau_Lancer_la_requête_à_partir_de_apps_U_B11_1[],2,FALSE),"") -> 38069069 | J11: =IFERROR(VLOOKUP('Pilotage charte de postes'!K10*10+1,Tableau_Lancer_la_requête_à_partir_de_apps_U_B11_1[],2,FALSE),"") -> 60196100 | K11: =IFERROR(VLOOKUP('Pilotage charte de postes'!L10*10+1,Tableau_Lancer_la_requête_à_partir_de_apps_U_B11_1[],2,FALSE),"") -> 98265169
B12: 3 logements | D12: =IFERROR(VLOOKUP('Pilotage charte de postes'!D11*10+1,Tableau_Lancer_la_requête_à_partir_de_apps_U_B11_1[],2,FALSE),"") -> 85458 | E12: =IFERROR(VLOOKUP('Pilotage charte de postes'!E11*10+1,Tableau_Lancer_la_requête_à_partir_de_apps_U_B11_1[],2,FALSE),"") -> 15629044417 | F12: =IFERROR(VLOOKUP('Pilotage charte de postes'!F11*10+1,Tableau_Lancer_la_requête_à_partir_de_apps_U_B11_1[],2,FALSE),"") -> 31406250239 | G12: =IFERROR(VLOOKUP('Pilotage charte de postes'!H11*10+1,Tableau_Lancer_la_requête_à_partir_de_apps_U_B11_1[],2,FALSE),"") -> 47035294656 | H12: =IFERROR(VLOOKUP('Pilotage charte de postes'!I11*10+1,Tableau_Lancer_la_requête_à_partir_de_apps_U_B11_1[],2,FALSE),"") -> 41 | I12: =IFERROR(VLOOKUP('Pilotage charte de postes'!J11*10+1,Tableau_Lancer_la_requête_à_partir_de_apps_U_B11_1[],2,FALSE),"") -> 8534391 | J12: =IFERROR(VLOOKUP('Pilotage charte de postes'!K11*10+1,Tableau_Lancer_la_requête_à_partir_de_apps_U_B11_1[],2,FALSE),"") -> 16716600 | K12: =IFERROR(VLOOKUP('Pilotage charte de postes'!L11*10+1,Tableau_Lancer_la_requête_à_partir_de_apps_U_B11_1[],2,FALSE),"") -> 25250991
B13: 4 logements | D13: =IFERROR(VLOOKUP('Pilotage charte de postes'!D12*10+1,Tableau_Lancer_la_requête_à_partir_de_apps_U_B11_1[],2,FALSE),"") -> 39974 | E13: =IFERROR(VLOOKUP('Pilotage charte de postes'!E12*10+1,Tableau_Lancer_la_requête_à_partir_de_apps_U_B11_1[],2,FALSE),"") -> 7105783273 | F13: =IFERROR(VLOOKUP('Pilotage charte de postes'!F12*10+1,Tableau_Lancer_la_requête_à_partir_de_apps_U_B11_1[],2,FALSE),"") -> 15643213047 | G13: =IFERROR(VLOOKUP('Pilotage charte de postes'!H12*10+1,Tableau_Lancer_la_requête_à_partir_de_apps_U_B11_1[],2,FALSE),"") -> 22748996320 | H13: =IFERROR(VLOOKUP('Pilotage charte de postes'!I12*10+1,Tableau_Lancer_la_requête_à_partir_de_apps_U_B11_1[],2,FALSE),"") -> 27 | I13: =IFERROR(VLOOKUP('Pilotage charte de postes'!J12*10+1,Tableau_Lancer_la_requête_à_partir_de_apps_U_B11_1[],2,FALSE),"") -> 5440461 | J13: =IFERROR(VLOOKUP('Pilotage charte de postes'!K12*10+1,Tableau_Lancer_la_requête_à_partir_de_apps_U_B11_1[],2,FALSE),"") -> 21035901 | K13: =IFERROR(VLOOKUP('Pilotage charte de postes'!L12*10+1,Tableau_Lancer_la_requête_à_partir_de_apps_U_B11_1[],2,FALSE),"") -> 26476362
B14: 5 logements | D14: =IFERROR(VLOOKUP('Pilotage charte de postes'!D13*10+1,Tableau_Lancer_la_requête_à_partir_de_apps_U_B11_1[],2,FALSE),"") -> 11829 | E14: =IFERROR(VLOOKUP('Pilotage charte de postes'!E13*10+1,Tableau_Lancer_la_requête_à_partir_de_apps_U_B11_1[],2,FALSE),"") -> 2923700675 | F14: =IFERROR(VLOOKUP('Pilotage charte de postes'!F13*10+1,Tableau_Lancer_la_requête_à_partir_de_apps_U_B11_1[],2,FALSE),"") -> 5922490884 | G14: =IFERROR(VLOOKUP('Pilotage charte de postes'!H13*10+1,Tableau_Lancer_la_requête_à_partir_de_apps_U_B11_1[],2,FALSE),"") -> 8846191559 | H14: =IFERROR(VLOOKUP('Pilotage charte de postes'!I13*10+1,Tableau_Lancer_la_requête_à_partir_de_apps_U_B11_1[],2,FALSE),"") -> 9 | I14: =IFERROR(VLOOKUP('Pilotage charte de postes'!J13*10+1,Tableau_Lancer_la_requête_à_partir_de_apps_U_B11_1[],2,FALSE),"") -> 3790503 | J14: =IFERROR(VLOOKUP('Pilotage charte de postes'!K13*10+1,Tableau_Lancer_la_requête_à_partir_de_apps_U_B11_1[],2,FALSE),"") -> 6572131 | K14: =IFERROR(VLOOKUP('Pilotage charte de postes'!L13*10+1,Tableau_Lancer_la_requête_à_partir_de_apps_U_B11_1[],2,FALSE),"") -> 10362634
B15: 6 à 9 logements | D15: =IFERROR(VLOOKUP('Pilotage charte de postes'!D14*10+1,Tableau_Lancer_la_requête_à_partir_de_apps_U_B11_1[],2,FALSE),"") -> 35260 | E15: =IFERROR(VLOOKUP('Pilotage charte de postes'!E14*10+1,Tableau_Lancer_la_requête_à_partir_de_apps_U_B11_1[],2,FALSE),"") -> 8140356643 | F15: =IFERROR(VLOOKUP('Pilotage charte de postes'!F14*10+1,Tableau_Lancer_la_requête_à_partir_de_apps_U_B11_1[],2,FALSE),"") -> 20195752287 | G15: =IFERROR(VLOOKUP('Pilotage charte de postes'!H14*10+1,Tableau_Lancer_la_requête_à_partir_de_apps_U_B11_1[],2,FALSE),"") -> 28336108930 | H15: =IFERROR(VLOOKUP('Pilotage charte de postes'!I14*10+1,Tableau_Lancer_la_requête_à_partir_de_apps_U_B11_1[],2,FALSE),"") -> 33 | I15: =IFERROR(VLOOKUP('Pilotage charte de postes'!J14*10+1,Tableau_Lancer_la_requête_à_partir_de_apps_U_B11_1[],2,FALSE),"") -> 12210026 | J15: =IFERROR(VLOOKUP('Pilotage charte de postes'!K14*10+1,Tableau_Lancer_la_requête_à_partir_de_apps_U_B11_1[],2,FALSE),"") -> 24855863 | K15: =IFERROR(VLOOKUP('Pilotage charte de postes'!L14*10+1,Tableau_Lancer_la_requête_à_partir_de_apps_U_B11_1[],2,FALSE),"") -> 37065889
B16: 10 à 19 logements | D16: =IFERROR(VLOOKUP('Pilotage charte de postes'!D15*10+1,Tableau_Lancer_la_requête_à_partir_de_apps_U_B11_1[],2,FALSE),"") -> 11132 | E16: =IFERROR(VLOOKUP('Pilotage charte de postes'!E15*10+1,Tableau_Lancer_la_requête_à_partir_de_apps_U_B11_1[],2,FALSE),"") -> 4416585291 | F16: =IFERROR(VLOOKUP('Pilotage charte de postes'!F15*10+1,Tableau_Lancer_la_requête_à_partir_de_apps_U_B11_1[],2,FALSE),"") -> 13001615002 | G16: =IFERROR(VLOOKUP('Pilotage charte de postes'!H15*10+1,Tableau_Lancer_la_requête_à_partir_de_apps_U_B11_1[],2,FALSE),"") -> 17418200292 | H16: =IFERROR(VLOOKUP('Pilotage charte de postes'!I15*10+1,Tableau_Lancer_la_requête_à_partir_de_apps_U_B11_1[],2,FALSE),"") -> 38 | I16: =IFERROR(VLOOKUP('Pilotage charte de postes'!J15*10+1,Tableau_Lancer_la_requête_à_partir_de_apps_U_B11_1[],2,FALSE),"") -> 16869033 | J16: =IFERROR(VLOOKUP('Pilotage charte de postes'!K15*10+1,Tableau_Lancer_la_requête_à_partir_de_apps_U_B11_1[],2,FALSE),"") -> 71025072 | K16: =IFERROR(VLOOKUP('Pilotage charte de postes'!L15*10+1,Tableau_Lancer_la_requête_à_partir_de_apps_U_B11_1[],2,FALSE),"") -> 87894106
B17: 20 à 29 logements | D17: =IFERROR(VLOOKUP('Pilotage charte de postes'!D16*10+1,Tableau_Lancer_la_requête_à_partir_de_apps_U_B11_1[],2,FALSE),"") -> 3387 | E17: =IFERROR(VLOOKUP('Pilotage charte de postes'!E16*10+1,Tableau_Lancer_la_requête_à_partir_de_apps_U_B11_1[],2,FALSE),"") -> 2155103270 | F17: =IFERROR(VLOOKUP('Pilotage charte de postes'!F16*10+1,Tableau_Lancer_la_requête_à_partir_de_apps_U_B11_1[],2,FALSE),"") -> 6820393674 | G17: =IFERROR(VLOOKUP('Pilotage charte de postes'!H16*10+1,Tableau_Lancer_la_requête_à_partir_de_apps_U_B11_1[],2,FALSE),"") -> 8975496944 | H17: =IFERROR(VLOOKUP('Pilotage charte de postes'!I16*10+1,Tableau_Lancer_la_requête_à_partir_de_apps_U_B11_1[],2,FALSE),"") -> 12 | I17: =IFERROR(VLOOKUP('Pilotage charte de postes'!J16*10+1,Tableau_Lancer_la_requête_à_partir_de_apps_U_B11_1[],2,FALSE),"") -> 9382392 | J17: =IFERROR(VLOOKUP('Pilotage charte de postes'!K16*10+1,Tableau_Lancer_la_requête_à_partir_de_apps_U_B11_1[],2,FALSE),"") -> 42657558 | K17: =IFERROR(VLOOKUP('Pilotage charte de postes'!L16*10+1,Tableau_Lancer_la_requête_à_partir_de_apps_U_B11_1[],2,FALSE),"") -> 52039950
B18: 30 à 49 logements | D18: =IFERROR(VLOOKUP('Pilotage charte de postes'!D17*10+1,Tableau_Lancer_la_requête_à_partir_de_apps_U_B11_1[],2,FALSE),"") -> 2518 | E18: =IFERROR(VLOOKUP('Pilotage charte de postes'!E17*10+1,Tableau_Lancer_la_requête_à_partir_de_apps_U_B11_1[],2,FALSE),"") -> 2526524325 | F18: =IFERROR(VLOOKUP('Pilotage charte de postes'!F17*10+1,Tableau_Lancer_la_requête_à_partir_de_apps_U_B11_1[],2,FALSE),"") -> 8628861069 | G18: =IFERROR(VLOOKUP('Pilotage charte de postes'!H17*10+1,Tableau_Lancer_la_requête_à_partir_de_apps_U_B11_1[],2,FALSE),"") -> 11155385394 | H18: =IFERROR(VLOOKUP('Pilotage charte de postes'!I17*10+1,Tableau_Lancer_la_requête_à_partir_de_apps_U_B11_1[],2,FALSE),"") -> 4 | I18: =IFERROR(VLOOKUP('Pilotage charte de postes'!J17*10+1,Tableau_Lancer_la_requête_à_partir_de_apps_U_B11_1[],2,FALSE),"") -> 10079942 | J18: =IFERROR(VLOOKUP('Pilotage charte de postes'!K17*10+1,Tableau_Lancer_la_requête_à_partir_de_apps_U_B11_1[],2,FALSE),"") -> 39590704 | K18: =IFERROR(VLOOKUP('Pilotage charte de postes'!L17*10+1,Tableau_Lancer_la_requête_à_partir_de_apps_U_B11_1[],2,FALSE),"") -> 49670646
B19: 50 à 99 logements | D19: =IFERROR(VLOOKUP('Pilotage charte de postes'!D18*10+1,Tableau_Lancer_la_requête_à_partir_de_apps_U_B11_1[],2,FALSE),"") -> 1294 | E19: =IFERROR(VLOOKUP('Pilotage charte de postes'!E18*10+1,Tableau_Lancer_la_requête_à_partir_de_apps_U_B11_1[],2,FALSE),"") -> 2433000177 | F19: =IFERROR(VLOOKUP('Pilotage charte de postes'!F18*10+1,Tableau_Lancer_la_requête_à_partir_de_apps_U_B11_1[],2,FALSE),"") -> 9851545864 | G19: =IFERROR(VLOOKUP('Pilotage charte de postes'!H18*10+1,Tableau_Lancer_la_requête_à_partir_de_apps_U_B11_1[],2,FALSE),"") -> 12284546041 | H19: =IFERROR(VLOOKUP('Pilotage charte de postes'!I18*10+1,Tableau_Lancer_la_requête_à_partir_de_apps_U_B11_1[],2,FALSE),"") -> 3 | I19: =IFERROR(VLOOKUP('Pilotage charte de postes'!J18*10+1,Tableau_Lancer_la_requête_à_partir_de_apps_U_B11_1[],2,FALSE),"") -> 7522613 | J19: =IFERROR(VLOOKUP('Pilotage charte de postes'!K18*10+1,Tableau_Lancer_la_requête_à_partir_de_apps_U_B11_1[],2,FALSE),"") -> 37277929 | K19: =IFERROR(VLOOKUP('Pilotage charte de postes'!L18*10+1,Tableau_Lancer_la_requête_à_partir_de_apps_U_B11_1[],2,FALSE),"") -> 44800542
B20: 100 à 199 logements | D20: =IFERROR(VLOOKUP('Pilotage charte de postes'!D19*10+1,Tableau_Lancer_la_requête_à_partir_de_apps_U_B11_1[],2,FALSE),"") -> 602 | E20: =IFERROR(VLOOKUP('Pilotage charte de postes'!E19*10+1,Tableau_Lancer_la_requête_à_partir_de_apps_U_B11_1[],2,FALSE),"") -> 2309350172 | F20: =IFERROR(VLOOKUP('Pilotage charte de postes'!F19*10+1,Tableau_Lancer_la_requête_à_partir_de_apps_U_B11_1[],2,FALSE),"") -> 10937937892 | G20: =IFERROR(VLOOKUP('Pilotage charte de postes'!H19*10+1,Tableau_Lancer_la_requête_à_partir_de_apps_U_B11_1[],2,FALSE),"") -> 13247288064 | H20: =IFERROR(VLOOKUP('Pilotage charte de postes'!I19*10+1,Tableau_Lancer_la_requête_à_partir_de_apps_U_B11_1[],2,FALSE),"") -> 5 | I20: =IFERROR(VLOOKUP('Pilotage charte de postes'!J19*10+1,Tableau_Lancer_la_requête_à_partir_de_apps_U_B11_1[],2,FALSE),"") -> 44913556 | J20: =IFERROR(VLOOKUP('Pilotage charte de postes'!K19*10+1,Tableau_Lancer_la_requête_à_partir_de_apps_U_B11_1[],2,FALSE),"") -> 83797645 | K20: =IFERROR(VLOOKUP('Pilotage charte de postes'!L19*10+1,Tableau_Lancer_la_requête_à_partir_de_apps_U_B11_1[],2,FALSE),"") -> 128711201
B21: 200 logements et plus | D21: =IFERROR(VLOOKUP('Pilotage charte de postes'!D20*10+1,Tableau_Lancer_la_requête_à_partir_de_apps_U_B11_1[],2,FALSE),"") -> 178 | E21: =IFERROR(VLOOKUP('Pilotage charte de postes'!E20*10+1,Tableau_Lancer_la_requête_à_partir_de_apps_U_B11_1[],2,FALSE),"") -> 1717912220 | F21: =IFERROR(VLOOKUP('Pilotage charte de postes'!F20*10+1,Tableau_Lancer_la_requête_à_partir_de_apps_U_B11_1[],2,FALSE),"") -> 8291136347 | G21: =IFERROR(VLOOKUP('Pilotage charte de postes'!H20*10+1,Tableau_Lancer_la_requête_à_partir_de_apps_U_B11_1[],2,FALSE),"") -> 10009048567 | H21: =IFERROR(VLOOKUP('Pilotage charte de postes'!I20*10+1,Tableau_Lancer_la_requête_à_partir_de_apps_U_B11_1[],2,FALSE),"") -> 3 | I21: =IFERROR(VLOOKUP('Pilotage charte de postes'!J20*10+1,Tableau_Lancer_la_requête_à_partir_de_apps_U_B11_1[],2,FALSE),"") -> 43072806 | J21: =IFERROR(VLOOKUP('Pilotage charte de postes'!K20*10+1,Tableau_Lancer_la_requête_à_partir_de_apps_U_B11_1[],2,FALSE),"") -> 145517327 | K21: =IFERROR(VLOOKUP('Pilotage charte de postes'!L20*10+1,Tableau_Lancer_la_requête_à_partir_de_apps_U_B11_1[],2,FALSE),"") -> 188590133
A22: 11 -- Chalets, maisons de villégiatures | D22: =IFERROR(VLOOKUP('Pilotage charte de postes'!D21*10+1,Tableau_Lancer_la_requête_à_partir_de_apps_U_B11_1[],2,FALSE),"") -> 137186 | E22: =IFERROR(VLOOKUP('Pilotage charte de postes'!E21*10+1,Tableau_Lancer_la_requête_à_partir_de_apps_U_B11_1[],2,FALSE),"") -> 9983260416 | F22: =IFERROR(VLOOKUP('Pilotage charte de postes'!F21*10+1,Tableau_Lancer_la_requête_à_partir_de_apps_U_B11_1[],2,FALSE),"") -> 14032809779 | G22: =IFERROR(VLOOKUP('Pilotage charte de postes'!H21*10+1,Tableau_Lancer_la_requête_à_partir_de_apps_U_B11_1[],2,FALSE),"") -> 24016070195 | H22: =IFERROR(VLOOKUP('Pilotage charte de postes'!I21*10+1,Tableau_Lancer_la_requête_à_partir_de_apps_U_B11_1[],2,FALSE),"") -> 400 | I22: =IFERROR(VLOOKUP('Pilotage charte de postes'!J21*10+1,Tableau_Lancer_la_requête_à_partir_de_apps_U_B11_1[],2,FALSE),"") -> 174462409 | J22: =IFERROR(VLOOKUP('Pilotage charte de postes'!K21*10+1,Tableau_Lancer_la_requête_à_partir_de_apps_U_B11_1[],2,FALSE),"") -> 27952059 | K22: =IFERROR(VLOOKUP('Pilotage charte de postes'!L21*10+1,Tableau_Lancer_la_requête_à_partir_de_apps_U_B11_1[],2,FALSE),"") -> 202414468
A23: 12 -- Maisons mobiles, roulottes | D23: =IFERROR(VLOOKUP('Pilotage charte de postes'!D22*10+1,Tableau_Lancer_la_requête_à_partir_de_apps_U_B11_1[],2,FALSE),"") -> 46172 | E23: =IFERROR(VLOOKUP('Pilotage charte de postes'!E22*10+1,Tableau_Lancer_la_requête_à_partir_de_apps_U_B11_1[],2,FALSE),"") -> 1182083834 | F23: =IFERROR(VLOOKUP('Pilotage charte de postes'!F22*10+1,Tableau_Lancer_la_requête_à_partir_de_apps_U_B11_1[],2,FALSE),"") -> 3462815270 | G23: =IFERROR(VLOOKUP('Pilotage charte de postes'!H22*10+1,Tableau_Lancer_la_requête_à_partir_de_apps_U_B11_1[],2,FALSE),"") -> 4644899104 | H23: =IFERROR(VLOOKUP('Pilotage charte de postes'!I22*10+1,Tableau_Lancer_la_requête_à_partir_de_apps_U_B11_1[],2,FALSE),"") -> 149 | I23: =IFERROR(VLOOKUP('Pilotage charte de postes'!J22*10+1,Tableau_Lancer_la_requête_à_partir_de_apps_U_B11_1[],2,FALSE),"") -> 827546 | J23: =IFERROR(VLOOKUP('Pilotage charte de postes'!K22*10+1,Tableau_Lancer_la_requête_à_partir_de_apps_U_B11_1[],2,FALSE),"") -> 3783967 | K23: =IFERROR(VLOOKUP('Pilotage charte de postes'!L22*10+1,Tableau_Lancer_la_requête_à_partir_de_apps_U_B11_1[],2,FALSE),"") -> 4611513
A24: 15 -- Habitations en commun | D24: =IFERROR(VLOOKUP('Pilotage charte de postes'!D23*10+1,Tableau_Lancer_la_requête_à_partir_de_apps_U_B11_1[],2,FALSE),"") -> 4152 | E24: =IFERROR(VLOOKUP('Pilotage charte de postes'!E23*10+1,Tableau_Lancer_la_requête_à_partir_de_apps_U_B11_1[],2,FALSE),"") -> 2565982647 | F24: =IFERROR(VLOOKUP('Pilotage charte de postes'!F23*10+1,Tableau_Lancer_la_requête_à_partir_de_apps_U_B11_1[],2,FALSE),"") -> 15762713240 | G24: =IFERROR(VLOOKUP('Pilotage charte de postes'!H23*10+1,Tableau_Lancer_la_requête_à_partir_de_apps_U_B11_1[],2,FALSE),"") -> 18328695887 | H24: =IFERROR(VLOOKUP('Pilotage charte de postes'!I23*10+1,Tableau_Lancer_la_requête_à_partir_de_apps_U_B11_1[],2,FALSE),"") -> 1450 | I24: =IFERROR(VLOOKUP('Pilotage charte de postes'!J23*10+1,Tableau_Lancer_la_requête_à_partir_de_apps_U_B11_1[],2,FALSE),"") -> 1537361245 | J24: =IFERROR(VLOOKUP('Pilotage charte de postes'!K23*10+1,Tableau_Lancer_la_requête_à_partir_de_apps_U_B11_1[],2,FALSE),"") -> 3731058992 | K24: =IFERROR(VLOOKUP('Pilotage charte de postes'!L23*10+1,Tableau_Lancer_la_requête_à_partir_de_apps_U_B11_1[],2,FALSE),"") -> 5268420236
A25: 16 -- Hôtels résidentiels | D25: =IFERROR(VLOOKUP('Pilotage charte de postes'!D24*10+1,Tableau_Lancer_la_requête_à_partir_de_apps_U_B11_1[],2,FALSE),"") -> 28 | E25: =IFERROR(VLOOKUP('Pilotage charte de postes'!E24*10+1,Tableau_Lancer_la_requête_à_partir_de_apps_U_B11_1[],2,FALSE),"") -> 8315657 | F25: =IFERROR(VLOOKUP('Pilotage charte de postes'!F24*10+1,Tableau_Lancer_la_requête_à_partir_de_apps_U_B11_1[],2,FALSE),"") -> 17812332 | G25: =IFERROR(VLOOKUP('Pilotage charte de postes'!H24*10+1,Tableau_Lancer_la_requête_à_partir_de_apps_U_B11_1[],2,FALSE),"") -> 26127989 | H25: =IFERROR(VLOOKUP('Pilotage charte de postes'!I24*10+1,Tableau_Lancer_la_requête_à_partir_de_apps_U_B11_1[],2,FALSE),"") ->  | I25: =IFERROR(VLOOKUP('Pilotage charte de postes'!J24*10+1,Tableau_Lancer_la_requête_à_partir_de_apps_U_B11_1[],2,FALSE),"") ->  | J25: =IFERROR(VLOOKUP('Pilotage charte de postes'!K24*10+1,Tableau_Lancer_la_requête_à_partir_de_apps_U_B11_1[],2,FALSE),"") ->  | K25: =IFERROR(VLOOKUP('Pilotage charte de postes'!L24*10+1,Tableau_Lancer_la_requête_à_partir_de_apps_U_B11_1[],2,FALSE),"") -> 
A26: 17 -- Parcs de roulottes et de maisons mobiles | D26: =IFERROR(VLOOKUP('Pilotage charte de postes'!D25*10+1,Tableau_Lancer_la_requête_à_partir_de_apps_U_B11_1[],2,FALSE),"") -> 177 | E26: =IFERROR(VLOOKUP('Pilotage charte de postes'!E25*10+1,Tableau_Lancer_la_requête_à_partir_de_apps_U_B11_1[],2,FALSE),"") -> 137912611 | F26: =IFERROR(VLOOKUP('Pilotage charte de postes'!F25*10+1,Tableau_Lancer_la_requête_à_partir_de_apps_U_B11_1[],2,FALSE),"") -> 10705154 | G26: =IFERROR(VLOOKUP('Pilotage charte de postes'!H25*10+1,Tableau_Lancer_la_requête_à_partir_de_apps_U_B11_1[],2,FALSE),"") -> 148617765 | H26: =IFERROR(VLOOKUP('Pilotage charte de postes'!I25*10+1,Tableau_Lancer_la_requête_à_partir_de_apps_U_B11_1[],2,FALSE),"") -> 9 | I26: =IFERROR(VLOOKUP('Pilotage charte de postes'!J25*10+1,Tableau_Lancer_la_requête_à_partir_de_apps_U_B11_1[],2,FALSE),"") -> 785554 | J26: =IFERROR(VLOOKUP('Pilotage charte de postes'!K25*10+1,Tableau_Lancer_la_requête_à_partir_de_apps_U_B11_1[],2,FALSE),"") -> 2323 | K26: =IFERROR(VLOOKUP('Pilotage charte de postes'!L25*10+1,Tableau_Lancer_la_requête_à_partir_de_apps_U_B11_1[],2,FALSE),"") -> 787877
A27: 18 - 19 -- Autres immeubles résidentiels | D27: =IFERROR(VLOOKUP('Pilotage charte de postes'!D26*10+1,Tableau_Lancer_la_requête_à_partir_de_apps_U_B11_1[],2,FALSE),"") -> 72546 | E27: =IFERROR(VLOOKUP('Pilotage charte de postes'!E26*10+1,Tableau_Lancer_la_requête_à_partir_de_apps_U_B11_1[],2,FALSE),"") -> 2641917768 | F27: =IFERROR(VLOOKUP('Pilotage charte de postes'!F26*10+1,Tableau_Lancer_la_requête_à_partir_de_apps_U_B11_1[],2,FALSE),"") -> 1471206559 | G27: =IFERROR(VLOOKUP('Pilotage charte de postes'!H26*10+1,Tableau_Lancer_la_requête_à_partir_de_apps_U_B11_1[],2,FALSE),"") -> 4113124328 | H27: =IFERROR(VLOOKUP('Pilotage charte de postes'!I26*10+1,Tableau_Lancer_la_requête_à_partir_de_apps_U_B11_1[],2,FALSE),"") -> 1203 | I27: =IFERROR(VLOOKUP('Pilotage charte de postes'!J26*10+1,Tableau_Lancer_la_requête_à_partir_de_apps_U_B11_1[],2,FALSE),"") -> 351977287 | J27: =IFERROR(VLOOKUP('Pilotage charte de postes'!K26*10+1,Tableau_Lancer_la_requête_à_partir_de_apps_U_B11_1[],2,FALSE),"") -> 81306545 | K27: =IFERROR(VLOOKUP('Pilotage charte de postes'!L26*10+1,Tableau_Lancer_la_requête_à_partir_de_apps_U_B11_1[],2,FALSE),"") -> 433283831
A28: 2 - 3 --TOTALE DE LA CATÉGORIE INDUSTRIES MANUFACTURIÈRES | D28: =IFERROR(VLOOKUP('Pilotage charte de postes'!D27*10+1,Tableau_Lancer_la_requête_à_partir_de_apps_U_B11_1[],2,FALSE),"") -> 10819 | E28: =IFERROR(VLOOKUP('Pilotage charte de postes'!E27*10+1,Tableau_Lancer_la_requête_à_partir_de_apps_U_B11_1[],2,FALSE),"") -> 6367965351 | F28: =IFERROR(VLOOKUP('Pilotage charte de postes'!F27*10+1,Tableau_Lancer_la_requête_à_partir_de_apps_U_B11_1[],2,FALSE),"") -> 21823087113 | G28: =IFERROR(VLOOKUP('Pilotage charte de postes'!H27*10+1,Tableau_Lancer_la_requête_à_partir_de_apps_U_B11_1[],2,FALSE),"") -> 28191052464 | H28: =IFERROR(VLOOKUP('Pilotage charte de postes'!I27*10+1,Tableau_Lancer_la_requête_à_partir_de_apps_U_B11_1[],2,FALSE),"") -> 132 | I28: =IFERROR(VLOOKUP('Pilotage charte de postes'!J27*10+1,Tableau_Lancer_la_requête_à_partir_de_apps_U_B11_1[],2,FALSE),"") -> 249760077 | J28: =IFERROR(VLOOKUP('Pilotage charte de postes'!K27*10+1,Tableau_Lancer_la_requête_à_partir_de_apps_U_B11_1[],2,FALSE),"") -> 235906367 | K28: =IFERROR(VLOOKUP('Pilotage charte de postes'!L27*10+1,Tableau_Lancer_la_requête_à_partir_de_apps_U_B11_1[],2,FALSE),"") -> 485666445
A29: 2 - 3 -- Industries manufacturières sauf « condominium » | D29: =IFERROR(VLOOKUP('Pilotage charte de postes'!D28*10+1,Tableau_Lancer_la_requête_à_partir_de_apps_U_B11_1[],2,FALSE),"") -> 10108 | E29: =IFERROR(VLOOKUP('Pilotage charte de postes'!E28*10+1,Tableau_Lancer_la_requête_à_partir_de_apps_U_B11_1[],2,FALSE),"") -> 6238661905 | F29: =IFERROR(VLOOKUP('Pilotage charte de postes'!F28*10+1,Tableau_Lancer_la_requête_à_partir_de_apps_U_B11_1[],2,FALSE),"") -> 21453059782 | G29: =IFERROR(VLOOKUP('Pilotage charte de postes'!H28*10+1,Tableau_Lancer_la_requête_à_partir_de_apps_U_B11_1[],2,FALSE),"") -> 27691721687 | H29: =IFERROR(VLOOKUP('Pilotage charte de postes'!I28*10+1,Tableau_Lancer_la_requête_à_partir_de_apps_U_B11_1[],2,FALSE),"") -> 130 | I29: =IFERROR(VLOOKUP('Pilotage charte de postes'!J28*10+1,Tableau_Lancer_la_requête_à_partir_de_apps_U_B11_1[],2,FALSE),"") -> 249669937 | J29: =IFERROR(VLOOKUP('Pilotage charte de postes'!K28*10+1,Tableau_Lancer_la_requête_à_partir_de_apps_U_B11_1[],2,FALSE),"") -> 235551667 | K29: =IFERROR(VLOOKUP('Pilotage charte de postes'!L28*10+1,Tableau_Lancer_la_requête_à_partir_de_apps_U_B11_1[],2,FALSE),"") -> 485221605
A30: 2 - 3 -- Industries manufacturières « condominium » | D30: =IFERROR(VLOOKUP('Pilotage charte de postes'!D29*10+1,Tableau_Lancer_la_requête_à_partir_de_apps_U_B11_1[],2,FALSE),"") -> 711 | E30: =IFERROR(VLOOKUP('Pilotage charte de postes'!E29*10+1,Tableau_Lancer_la_requête_à_partir_de_apps_U_B11_1[],2,FALSE),"") -> 129303446 | F30: =IFERROR(VLOOKUP('Pilotage charte de postes'!F29*10+1,Tableau_Lancer_la_requête_à_partir_de_apps_U_B11_1[],2,FALSE),"") -> 370027331 | G30: =IFERROR(VLOOKUP('Pilotage charte de postes'!H29*10+1,Tableau_Lancer_la_requête_à_partir_de_apps_U_B11_1[],2,FALSE),"") -> 499330777 | H30: =IFERROR(VLOOKUP('Pilotage charte de postes'!I29*10+1,Tableau_Lancer_la_requête_à_partir_de_apps_U_B11_1[],2,FALSE),"") -> 2 | I30: =IFERROR(VLOOKUP('Pilotage charte de postes'!J29*10+1,Tableau_Lancer_la_requête_à_partir_de_apps_U_B11_1[],2,FALSE),"") -> 90140 | J30: =IFERROR(VLOOKUP('Pilotage charte de postes'!K29*10+1,Tableau_Lancer_la_requête_à_partir_de_apps_U_B11_1[],2,FALSE),"") -> 354700 | K30: =IFERROR(VLOOKUP('Pilotage charte de postes'!L29*10+1,Tableau_Lancer_la_requête_à_partir_de_apps_U_B11_1[],2,FALSE),"") -> 444840
A31: 4 --- TOTALE DE LA CATÉGORIE TRANSPORTS, COMM., SERVICES PUBLICS | D31: =IFERROR(VLOOKUP('Pilotage charte de postes'!D30*10+1,Tableau_Lancer_la_requête_à_partir_de_apps_U_B11_1[],2,FALSE),"") -> 49940 | E31: =IFERROR(VLOOKUP('Pilotage charte de postes'!E30*10+1,Tableau_Lancer_la_requête_à_partir_de_apps_U_B11_1[],2,FALSE),"") -> 6889150756 | F31: =IFERROR(VLOOKUP('Pilotage charte de postes'!F30*10+1,Tableau_Lancer_la_requête_à_partir_de_apps_U_B11_1[],2,FALSE),"") -> 7202064046 | G31: =IFERROR(VLOOKUP('Pilotage charte de postes'!H30*10+1,Tableau_Lancer_la_requête_à_partir_de_apps_U_B11_1[],2,FALSE),"") -> 14091214802 | H31: =IFERROR(VLOOKUP('Pilotage charte de postes'!I30*10+1,Tableau_Lancer_la_requête_à_partir_de_apps_U_B11_1[],2,FALSE),"") -> 69795 | I31: =IFERROR(VLOOKUP('Pilotage charte de postes'!J30*10+1,Tableau_Lancer_la_requête_à_partir_de_apps_U_B11_1[],2,FALSE),"") -> 6485323807 | J31: =IFERROR(VLOOKUP('Pilotage charte de postes'!K30*10+1,Tableau_Lancer_la_requête_à_partir_de_apps_U_B11_1[],2,FALSE),"") -> 8060664103 | K31: =IFERROR(VLOOKUP('Pilotage charte de postes'!L30*10+1,Tableau_Lancer_la_requête_à_partir_de_apps_U_B11_1[],2,FALSE),"") -> 14545987910
A32: 4111 Chemin de fer | D32: =IFERROR(VLOOKUP('Pilotage charte de postes'!D31*10+1,Tableau_Lancer_la_requête_à_partir_de_apps_U_B11_1[],2,FALSE),"") -> 914 | E32: =IFERROR(VLOOKUP('Pilotage charte de postes'!E31*10+1,Tableau_Lancer_la_requête_à_partir_de_apps_U_B11_1[],2,FALSE),"") -> 2529406722 | F32: =IFERROR(VLOOKUP('Pilotage charte de postes'!F31*10+1,Tableau_Lancer_la_requête_à_partir_de_apps_U_B11_1[],2,FALSE),"") -> 3194548 | G32: =IFERROR(VLOOKUP('Pilotage charte de postes'!H31*10+1,Tableau_Lancer_la_requête_à_partir_de_apps_U_B11_1[],2,FALSE),"") -> 2532601270 | H32: =IFERROR(VLOOKUP('Pilotage charte de postes'!I31*10+1,Tableau_Lancer_la_requête_à_partir_de_apps_U_B11_1[],2,FALSE),"") -> 263 | I32: =IFERROR(VLOOKUP('Pilotage charte de postes'!J31*10+1,Tableau_Lancer_la_requête_à_partir_de_apps_U_B11_1[],2,FALSE),"") -> 583585059 | J32: =IFERROR(VLOOKUP('Pilotage charte de postes'!K31*10+1,Tableau_Lancer_la_requête_à_partir_de_apps_U_B11_1[],2,FALSE),"") -> 1355622 | K32: =IFERROR(VLOOKUP('Pilotage charte de postes'!L31*10+1,Tableau_Lancer_la_requête_à_partir_de_apps_U_B11_1[],2,FALSE),"") -> 584940681
A33: 46 -- Terrains et garages de stationnement | D33: =IFERROR(VLOOKUP('Pilotage charte de postes'!D32*10+1,Tableau_Lancer_la_requête_à_partir_de_apps_U_B11_1[],2,FALSE),"") -> 3117 | E33: =IFERROR(VLOOKUP('Pilotage charte de postes'!E32*10+1,Tableau_Lancer_la_requête_à_partir_de_apps_U_B11_1[],2,FALSE),"") -> 1294232860 | F33: =IFERROR(VLOOKUP('Pilotage charte de postes'!F32*10+1,Tableau_Lancer_la_requête_à_partir_de_apps_U_B11_1[],2,FALSE),"") -> 320095042 | G33: =IFERROR(VLOOKUP('Pilotage charte de postes'!H32*10+1,Tableau_Lancer_la_requête_à_partir_de_apps_U_B11_1[],2,FALSE),"") -> 1614327902 | H33: =IFERROR(VLOOKUP('Pilotage charte de postes'!I32*10+1,Tableau_Lancer_la_requête_à_partir_de_apps_U_B11_1[],2,FALSE),"") -> 931 | I33: =IFERROR(VLOOKUP('Pilotage charte de postes'!J32*10+1,Tableau_Lancer_la_requête_à_partir_de_apps_U_B11_1[],2,FALSE),"") -> 683408099 | J33: =IFERROR(VLOOKUP('Pilotage charte de postes'!K32*10+1,Tableau_Lancer_la_requête_à_partir_de_apps_U_B11_1[],2,FALSE),"") -> 157415477 | K33: =IFERROR(VLOOKUP('Pilotage charte de postes'!L32*10+1,Tableau_Lancer_la_requête_à_partir_de_apps_U_B11_1[],2,FALSE),"") -> 840823576
A34: 5 --- TOTALE DE LA CATÉGORIE COMMERCIALE | D34: =IFERROR(VLOOKUP('Pilotage charte de postes'!D33*10+1,Tableau_Lancer_la_requête_à_partir_de_apps_U_B11_1[],2,FALSE),"") -> 52953 | E34: =IFERROR(VLOOKUP('Pilotage charte de postes'!E33*10+1,Tableau_Lancer_la_requête_à_partir_de_apps_U_B11_1[],2,FALSE),"") -> 29283726642 | F34: =IFERROR(VLOOKUP('Pilotage charte de postes'!F33*10+1,Tableau_Lancer_la_requête_à_partir_de_apps_U_B11_1[],2,FALSE),"") -> 55977245265 | G34: =IFERROR(VLOOKUP('Pilotage charte de postes'!H33*10+1,Tableau_Lancer_la_requête_à_partir_de_apps_U_B11_1[],2,FALSE),"") -> 85260971907 | H34: =IFERROR(VLOOKUP('Pilotage charte de postes'!I33*10+1,Tableau_Lancer_la_requête_à_partir_de_apps_U_B11_1[],2,FALSE),"") -> 610 | I34: =IFERROR(VLOOKUP('Pilotage charte de postes'!J33*10+1,Tableau_Lancer_la_requête_à_partir_de_apps_U_B11_1[],2,FALSE),"") -> 258959400 | J34: =IFERROR(VLOOKUP('Pilotage charte de postes'!K33*10+1,Tableau_Lancer_la_requête_à_partir_de_apps_U_B11_1[],2,FALSE),"") -> 473253097 | K34: =IFERROR(VLOOKUP('Pilotage charte de postes'!L33*10+1,Tableau_Lancer_la_requête_à_partir_de_apps_U_B11_1[],2,FALSE),"") -> 732212497
A35: 50 -- Centres et immeubles commerciaux | D35: =IFERROR(VLOOKUP('Pilotage charte de postes'!D34*10+1,Tableau_Lancer_la_requête_à_partir_de_apps_U_B11_1[],2,FALSE),"") -> 17359 | E35: =IFERROR(VLOOKUP('Pilotage charte de postes'!E34*10+1,Tableau_Lancer_la_requête_à_partir_de_apps_U_B11_1[],2,FALSE),"") -> 16042482908 | F35: =IFERROR(VLOOKUP('Pilotage charte de postes'!F34*10+1,Tableau_Lancer_la_requête_à_partir_de_apps_U_B11_1[],2,FALSE),"") -> 29808367596 | G35: =IFERROR(VLOOKUP('Pilotage charte de postes'!H34*10+1,Tableau_Lancer_la_requête_à_partir_de_apps_U_B11_1[],2,FALSE),"") -> 45850850504 | H35: =IFERROR(VLOOKUP('Pilotage charte de postes'!I34*10+1,Tableau_Lancer_la_requête_à_partir_de_apps_U_B11_1[],2,FALSE),"") -> 247 | I35: =IFERROR(VLOOKUP('Pilotage charte de postes'!J34*10+1,Tableau_Lancer_la_requête_à_partir_de_apps_U_B11_1[],2,FALSE),"") -> 155635371 | J35: =IFERROR(VLOOKUP('Pilotage charte de postes'!K34*10+1,Tableau_Lancer_la_requête_à_partir_de_apps_U_B11_1[],2,FALSE),"") -> 269597368 | K35: =IFERROR(VLOOKUP('Pilotage charte de postes'!L34*10+1,Tableau_Lancer_la_requête_à_partir_de_apps_U_B11_1[],2,FALSE),"") -> 425232738
A36: 51 -- Ventes en gros | D36: =IFERROR(VLOOKUP('Pilotage charte de postes'!D35*10+1,Tableau_Lancer_la_requête_à_partir_de_apps_U_B11_1[],2,FALSE),"") -> 1922 | E36: =IFERROR(VLOOKUP('Pilotage charte de postes'!E35*10+1,Tableau_Lancer_la_requête_à_partir_de_apps_U_B11_1[],2,FALSE),"") -> 1213446715 | F36: =IFERROR(VLOOKUP('Pilotage charte de postes'!F35*10+1,Tableau_Lancer_la_requête_à_partir_de_apps_U_B11_1[],2,FALSE),"") -> 2550705476 | G36: =IFERROR(VLOOKUP('Pilotage charte de postes'!H35*10+1,Tableau_Lancer_la_requête_à_partir_de_apps_U_B11_1[],2,FALSE),"") -> 3764152191 | H36: =IFERROR(VLOOKUP('Pilotage charte de postes'!I35*10+1,Tableau_Lancer_la_requête_à_partir_de_apps_U_B11_1[],2,FALSE),"") -> 9 | I36: =IFERROR(VLOOKUP('Pilotage charte de postes'!J35*10+1,Tableau_Lancer_la_requête_à_partir_de_apps_U_B11_1[],2,FALSE),"") -> 7797197 | J36: =IFERROR(VLOOKUP('Pilotage charte de postes'!K35*10+1,Tableau_Lancer_la_requête_à_partir_de_apps_U_B11_1[],2,FALSE),"") -> 13195589 | K36: =IFERROR(VLOOKUP('Pilotage charte de postes'!L35*10+1,Tableau_Lancer_la_requête_à_partir_de_apps_U_B11_1[],2,FALSE),"") -> 20992786
A37: 52 à 59 -- Ventes au détail (sauf 583 -) | D37: =IFERROR(VLOOKUP('Pilotage charte de postes'!D36*10+1,Tableau_Lancer_la_requête_à_partir_de_apps_U_B11_1[],2,FALSE),"") -> 22741 | E37: =IFERROR(VLOOKUP('Pilotage charte de postes'!E36*10+1,Tableau_Lancer_la_requête_à_partir_de_apps_U_B11_1[],2,FALSE),"") -> 10049351399 | F37: =IFERROR(VLOOKUP('Pilotage charte de postes'!F36*10+1,Tableau_Lancer_la_requête_à_partir_de_apps_U_B11_1[],2,FALSE),"") -> 17034900022 | G37: =IFERROR(VLOOKUP('Pilotage charte de postes'!H36*10+1,Tableau_Lancer_la_requête_à_partir_de_apps_U_B11_1[],2,FALSE),"") -> 27084251421 | H37: =IFERROR(VLOOKUP('Pilotage charte de postes'!I36*10+1,Tableau_Lancer_la_requête_à_partir_de_apps_U_B11_1[],2,FALSE),"") -> 298 | I37: =IFERROR(VLOOKUP('Pilotage charte de postes'!J36*10+1,Tableau_Lancer_la_requête_à_partir_de_apps_U_B11_1[],2,FALSE),"") -> 82211931 | J37: =IFERROR(VLOOKUP('Pilotage charte de postes'!K36*10+1,Tableau_Lancer_la_requête_à_partir_de_apps_U_B11_1[],2,FALSE),"") -> 163259188 | K37: =IFERROR(VLOOKUP('Pilotage charte de postes'!L36*10+1,Tableau_Lancer_la_requête_à_partir_de_apps_U_B11_1[],2,FALSE),"") -> 245471120
A38: 583 -- Hôtels, motels et maisons de touristes | D38: =IFERROR(VLOOKUP('Pilotage charte de postes'!D37*10+1,Tableau_Lancer_la_requête_à_partir_de_apps_U_B11_1[],2,FALSE),"") -> 10931 | E38: =IFERROR(VLOOKUP('Pilotage charte de postes'!E37*10+1,Tableau_Lancer_la_requête_à_partir_de_apps_U_B11_1[],2,FALSE),"") -> 1978445620 | F38: =IFERROR(VLOOKUP('Pilotage charte de postes'!F37*10+1,Tableau_Lancer_la_requête_à_partir_de_apps_U_B11_1[],2,FALSE),"") -> 6583272171 | G38: =IFERROR(VLOOKUP('Pilotage charte de postes'!H37*10+1,Tableau_Lancer_la_requête_à_partir_de_apps_U_B11_1[],2,FALSE),"") -> 8561717791 | H38: =IFERROR(VLOOKUP('Pilotage charte de postes'!I37*10+1,Tableau_Lancer_la_requête_à_partir_de_apps_U_B11_1[],2,FALSE),"") -> 56 | I38: =IFERROR(VLOOKUP('Pilotage charte de postes'!J37*10+1,Tableau_Lancer_la_requête_à_partir_de_apps_U_B11_1[],2,FALSE),"") -> 13314901 | J38: =IFERROR(VLOOKUP('Pilotage charte de postes'!K37*10+1,Tableau_Lancer_la_requête_à_partir_de_apps_U_B11_1[],2,FALSE),"") -> 27200952 | K38: =IFERROR(VLOOKUP('Pilotage charte de postes'!L37*10+1,Tableau_Lancer_la_requête_à_partir_de_apps_U_B11_1[],2,FALSE),"") -> 40515853
A39: 5 --- Commerciale sauf « condominium » | D39: =IFERROR(VLOOKUP('Pilotage charte de postes'!D38*10+1,Tableau_Lancer_la_requête_à_partir_de_apps_U_B11_1[],2,FALSE),"") -> 43547 | E39: =IFERROR(VLOOKUP('Pilotage charte de postes'!E38*10+1,Tableau_Lancer_la_requête_à_partir_de_apps_U_B11_1[],2,FALSE),"") -> 28059718719 | F39: =IFERROR(VLOOKUP('Pilotage charte de postes'!F38*10+1,Tableau_Lancer_la_requête_à_partir_de_apps_U_B11_1[],2,FALSE),"") -> 51430533575 | G39: =IFERROR(VLOOKUP('Pilotage charte de postes'!H38*10+1,Tableau_Lancer_la_requête_à_partir_de_apps_U_B11_1[],2,FALSE),"") -> 79490252294 | H39: =IFERROR(VLOOKUP('Pilotage charte de postes'!I38*10+1,Tableau_Lancer_la_requête_à_partir_de_apps_U_B11_1[],2,FALSE),"") -> 597 | I39: =IFERROR(VLOOKUP('Pilotage charte de postes'!J38*10+1,Tableau_Lancer_la_requête_à_partir_de_apps_U_B11_1[],2,FALSE),"") -> 252398702 | J39: =IFERROR(VLOOKUP('Pilotage charte de postes'!K38*10+1,Tableau_Lancer_la_requête_à_partir_de_apps_U_B11_1[],2,FALSE),"") -> 456757985 | K39: =IFERROR(VLOOKUP('Pilotage charte de postes'!L38*10+1,Tableau_Lancer_la_requête_à_partir_de_apps_U_B11_1[],2,FALSE),"") -> 709156687
A40: 5 --- Commerciale « condominium » | D40: =IFERROR(VLOOKUP('Pilotage charte de postes'!D39*10+1,Tableau_Lancer_la_requête_à_partir_de_apps_U_B11_1[],2,FALSE),"") -> 9406 | E40: =IFERROR(VLOOKUP('Pilotage charte de postes'!E39*10+1,Tableau_Lancer_la_requête_à_partir_de_apps_U_B11_1[],2,FALSE),"") -> 1224007923 | F40: =IFERROR(VLOOKUP('Pilotage charte de postes'!F39*10+1,Tableau_Lancer_la_requête_à_partir_de_apps_U_B11_1[],2,FALSE),"") -> 4546711690 | G40: =IFERROR(VLOOKUP('Pilotage charte de postes'!H39*10+1,Tableau_Lancer_la_requête_à_partir_de_apps_U_B11_1[],2,FALSE),"") -> 5770719613 | H40: =IFERROR(VLOOKUP('Pilotage charte de postes'!I39*10+1,Tableau_Lancer_la_requête_à_partir_de_apps_U_B11_1[],2,FALSE),"") -> 13 | I40: =IFERROR(VLOOKUP('Pilotage charte de postes'!J39*10+1,Tableau_Lancer_la_requête_à_partir_de_apps_U_B11_1[],2,FALSE),"") -> 6560698 | J40: =IFERROR(VLOOKUP('Pilotage charte de postes'!K39*10+1,Tableau_Lancer_la_requête_à_partir_de_apps_U_B11_1[],2,FALSE),"") -> 16495112 | K40: =IFERROR(VLOOKUP('Pilotage charte de postes'!L39*10+1,Tableau_Lancer_la_requête_à_partir_de_apps_U_B11_1[],2,FALSE),"") -> 23055810
A41: 6 ---TOTALE DE LA CATÉGORIE SERVICES | D41: =IFERROR(VLOOKUP('Pilotage charte de postes'!D40*10+1,Tableau_Lancer_la_requête_à_partir_de_apps_U_B11_1[],2,FALSE),"") -> 35189 | E41: =IFERROR(VLOOKUP('Pilotage charte de postes'!E40*10+1,Tableau_Lancer_la_requête_à_partir_de_apps_U_B11_1[],2,FALSE),"") -> 15614368554 | F41: =IFERROR(VLOOKUP('Pilotage charte de postes'!F40*10+1,Tableau_Lancer_la_requête_à_partir_de_apps_U_B11_1[],2,FALSE),"") -> 44837655676 | G41: =IFERROR(VLOOKUP('Pilotage charte de postes'!H40*10+1,Tableau_Lancer_la_requête_à_partir_de_apps_U_B11_1[],2,FALSE),"") -> 60452024229 | H41: =IFERROR(VLOOKUP('Pilotage charte de postes'!I40*10+1,Tableau_Lancer_la_requête_à_partir_de_apps_U_B11_1[],2,FALSE),"") -> 15728 | I41: =IFERROR(VLOOKUP('Pilotage charte de postes'!J40*10+1,Tableau_Lancer_la_requête_à_partir_de_apps_U_B11_1[],2,FALSE),"") -> 20669611928 | J41: =IFERROR(VLOOKUP('Pilotage charte de postes'!K40*10+1,Tableau_Lancer_la_requête_à_partir_de_apps_U_B11_1[],2,FALSE),"") -> 61362919594 | K41: =IFERROR(VLOOKUP('Pilotage charte de postes'!L40*10+1,Tableau_Lancer_la_requête_à_partir_de_apps_U_B11_1[],2,FALSE),"") -> 82032531521
A42: 60 -- Immeubles à bureaux | D42: =IFERROR(VLOOKUP('Pilotage charte de postes'!D41*10+1,Tableau_Lancer_la_requête_à_partir_de_apps_U_B11_1[],2,FALSE),"") -> 4083 | E42: =IFERROR(VLOOKUP('Pilotage charte de postes'!E41*10+1,Tableau_Lancer_la_requête_à_partir_de_apps_U_B11_1[],2,FALSE),"") -> 7616411017 | F42: =IFERROR(VLOOKUP('Pilotage charte de postes'!F41*10+1,Tableau_Lancer_la_requête_à_partir_de_apps_U_B11_1[],2,FALSE),"") -> 26206063143 | G42: =IFERROR(VLOOKUP('Pilotage charte de postes'!H41*10+1,Tableau_Lancer_la_requête_à_partir_de_apps_U_B11_1[],2,FALSE),"") -> 33822474160 | H42: =IFERROR(VLOOKUP('Pilotage charte de postes'!I41*10+1,Tableau_Lancer_la_requête_à_partir_de_apps_U_B11_1[],2,FALSE),"") -> 609 | I42: =IFERROR(VLOOKUP('Pilotage charte de postes'!J41*10+1,Tableau_Lancer_la_requête_à_partir_de_apps_U_B11_1[],2,FALSE),"") -> 951849025 | J42: =IFERROR(VLOOKUP('Pilotage charte de postes'!K41*10+1,Tableau_Lancer_la_requête_à_partir_de_apps_U_B11_1[],2,FALSE),"") -> 2953687722 | K42: =IFERROR(VLOOKUP('Pilotage charte de postes'!L41*10+1,Tableau_Lancer_la_requête_à_partir_de_apps_U_B11_1[],2,FALSE),"") -> 3905536747
A43: 6 -- Services sauf « condominium » | D43: =IFERROR(VLOOKUP('Pilotage charte de postes'!D42*10+1,Tableau_Lancer_la_requête_à_partir_de_apps_U_B11_1[],2,FALSE),"") -> 30816 | E43: =IFERROR(VLOOKUP('Pilotage charte de postes'!E42*10+1,Tableau_Lancer_la_requête_à_partir_de_apps_U_B11_1[],2,FALSE),"") -> 14191240907 | F43: =IFERROR(VLOOKUP('Pilotage charte de postes'!F42*10+1,Tableau_Lancer_la_requête_à_partir_de_apps_U_B11_1[],2,FALSE),"") -> 39602518266 | G43: =IFERROR(VLOOKUP('Pilotage charte de postes'!H42*10+1,Tableau_Lancer_la_requête_à_partir_de_apps_U_B11_1[],2,FALSE),"") -> 53793759172 | H43: =IFERROR(VLOOKUP('Pilotage charte de postes'!I42*10+1,Tableau_Lancer_la_requête_à_partir_de_apps_U_B11_1[],2,FALSE),"") -> 15552 | I43: =IFERROR(VLOOKUP('Pilotage charte de postes'!J42*10+1,Tableau_Lancer_la_requête_à_partir_de_apps_U_B11_1[],2,FALSE),"") -> 20513802927 | J43: =IFERROR(VLOOKUP('Pilotage charte de postes'!K42*10+1,Tableau_Lancer_la_requête_à_partir_de_apps_U_B11_1[],2,FALSE),"") -> 60931106693 | K43: =IFERROR(VLOOKUP('Pilotage charte de postes'!L42*10+1,Tableau_Lancer_la_requête_à_partir_de_apps_U_B11_1[],2,FALSE),"") -> 81444909619
A44: 6 -- Services « condominium » | D44: =IFERROR(VLOOKUP('Pilotage charte de postes'!D43*10+1,Tableau_Lancer_la_requête_à_partir_de_apps_U_B11_1[],2,FALSE),"") -> 4373 | E44: =IFERROR(VLOOKUP('Pilotage charte de postes'!E43*10+1,Tableau_Lancer_la_requête_à_partir_de_apps_U_B11_1[],2,FALSE),"") -> 1423127647 | F44: =IFERROR(VLOOKUP('Pilotage charte de postes'!F43*10+1,Tableau_Lancer_la_requête_à_partir_de_apps_U_B11_1[],2,FALSE),"") -> 5235137410 | G44: =IFERROR(VLOOKUP('Pilotage charte de postes'!H43*10+1,Tableau_Lancer_la_requête_à_partir_de_apps_U_B11_1[],2,FALSE),"") -> 6658265057 | H44: =IFERROR(VLOOKUP('Pilotage charte de postes'!I43*10+1,Tableau_Lancer_la_requête_à_partir_de_apps_U_B11_1[],2,FALSE),"") -> 176 | I44: =IFERROR(VLOOKUP('Pilotage charte de postes'!J43*10+1,Tableau_Lancer_la_requête_à_partir_de_apps_U_B11_1[],2,FALSE),"") -> 155809001 | J44: =IFERROR(VLOOKUP('Pilotage charte de postes'!K43*10+1,Tableau_Lancer_la_requête_à_partir_de_apps_U_B11_1[],2,FALSE),"") -> 431812901 | K44: =IFERROR(VLOOKUP('Pilotage charte de postes'!L43*10+1,Tableau_Lancer_la_requête_à_partir_de_apps_U_B11_1[],2,FALSE),"") -> 587621902
A45: 7 --- TOTALE DE LA CATÉGORIE CULTURELLE, RÉCRÉATIVE ET DE LOISIRS | D45: =IFERROR(VLOOKUP('Pilotage charte de postes'!D44*10+1,Tableau_Lancer_la_requête_à_partir_de_apps_U_B11_1[],2,FALSE),"") -> 5245 | E45: =IFERROR(VLOOKUP('Pilotage charte de postes'!E44*10+1,Tableau_Lancer_la_requête_à_partir_de_apps_U_B11_1[],2,FALSE),"") -> 2170834112 | F45: =IFERROR(VLOOKUP('Pilotage charte de postes'!F44*10+1,Tableau_Lancer_la_requête_à_partir_de_apps_U_B11_1[],2,FALSE),"") -> 4654664921 | G45: =IFERROR(VLOOKUP('Pilotage charte de postes'!H44*10+1,Tableau_Lancer_la_requête_à_partir_de_apps_U_B11_1[],2,FALSE),"") -> 6825499033 | H45: =IFERROR(VLOOKUP('Pilotage charte de postes'!I44*10+1,Tableau_Lancer_la_requête_à_partir_de_apps_U_B11_1[],2,FALSE),"") -> 12676 | I45: =IFERROR(VLOOKUP('Pilotage charte de postes'!J44*10+1,Tableau_Lancer_la_requête_à_partir_de_apps_U_B11_1[],2,FALSE),"") -> 17530903215 | J45: =IFERROR(VLOOKUP('Pilotage charte de postes'!K44*10+1,Tableau_Lancer_la_requête_à_partir_de_apps_U_B11_1[],2,FALSE),"") -> 10319040866 | K45: =IFERROR(VLOOKUP('Pilotage charte de postes'!L44*10+1,Tableau_Lancer_la_requête_à_partir_de_apps_U_B11_1[],2,FALSE),"") -> 27849944081
A46: 7411 - 7412 Terrains de golf | D46: =IFERROR(VLOOKUP('Pilotage charte de postes'!D45*10+1,Tableau_Lancer_la_requête_à_partir_de_apps_U_B11_1[],2,FALSE),"") -> 390 | E46: =IFERROR(VLOOKUP('Pilotage charte de postes'!E45*10+1,Tableau_Lancer_la_requête_à_partir_de_apps_U_B11_1[],2,FALSE),"") -> 365219979 | F46: =IFERROR(VLOOKUP('Pilotage charte de postes'!F45*10+1,Tableau_Lancer_la_requête_à_partir_de_apps_U_B11_1[],2,FALSE),"") -> 324361682 | G46: =IFERROR(VLOOKUP('Pilotage charte de postes'!H45*10+1,Tableau_Lancer_la_requête_à_partir_de_apps_U_B11_1[],2,FALSE),"") -> 689581661 | H46: =IFERROR(VLOOKUP('Pilotage charte de postes'!I45*10+1,Tableau_Lancer_la_requête_à_partir_de_apps_U_B11_1[],2,FALSE),"") -> 26 | I46: =IFERROR(VLOOKUP('Pilotage charte de postes'!J45*10+1,Tableau_Lancer_la_requête_à_partir_de_apps_U_B11_1[],2,FALSE),"") -> 152666986 | J46: =IFERROR(VLOOKUP('Pilotage charte de postes'!K45*10+1,Tableau_Lancer_la_requête_à_partir_de_apps_U_B11_1[],2,FALSE),"") -> 357626890 | K46: =IFERROR(VLOOKUP('Pilotage charte de postes'!L45*10+1,Tableau_Lancer_la_requête_à_partir_de_apps_U_B11_1[],2,FALSE),"") -> 510293876
A47: 76 -- Parcs | D47: =IFERROR(VLOOKUP('Pilotage charte de postes'!D46*10+1,Tableau_Lancer_la_requête_à_partir_de_apps_U_B11_1[],2,FALSE),"") -> 873 | E47: =IFERROR(VLOOKUP('Pilotage charte de postes'!E46*10+1,Tableau_Lancer_la_requête_à_partir_de_apps_U_B11_1[],2,FALSE),"") -> 76265136 | F47: =IFERROR(VLOOKUP('Pilotage charte de postes'!F46*10+1,Tableau_Lancer_la_requête_à_partir_de_apps_U_B11_1[],2,FALSE),"") -> 57982819 | G47: =IFERROR(VLOOKUP('Pilotage charte de postes'!H46*10+1,Tableau_Lancer_la_requête_à_partir_de_apps_U_B11_1[],2,FALSE),"") -> 134247955 | H47: =IFERROR(VLOOKUP('Pilotage charte de postes'!I46*10+1,Tableau_Lancer_la_requête_à_partir_de_apps_U_B11_1[],2,FALSE),"") -> 6678 | I47: =IFERROR(VLOOKUP('Pilotage charte de postes'!J46*10+1,Tableau_Lancer_la_requête_à_partir_de_apps_U_B11_1[],2,FALSE),"") -> 10718032674 | J47: =IFERROR(VLOOKUP('Pilotage charte de postes'!K46*10+1,Tableau_Lancer_la_requête_à_partir_de_apps_U_B11_1[],2,FALSE),"") -> 1221888291 | K47: =IFERROR(VLOOKUP('Pilotage charte de postes'!L46*10+1,Tableau_Lancer_la_requête_à_partir_de_apps_U_B11_1[],2,FALSE),"") -> 11939920965
A48: 8 --- TOTALE DE LA CATÉGORIE PRODUCTION, EXT. DE RICHESSES NAT. | D48: =IFERROR(VLOOKUP('Pilotage charte de postes'!D47*10+1,Tableau_Lancer_la_requête_à_partir_de_apps_U_B11_1[],2,FALSE),"") -> 135725 | E48: =IFERROR(VLOOKUP('Pilotage charte de postes'!E47*10+1,Tableau_Lancer_la_requête_à_partir_de_apps_U_B11_1[],2,FALSE),"") -> 43222235594 | F48: =IFERROR(VLOOKUP('Pilotage charte de postes'!F47*10+1,Tableau_Lancer_la_requête_à_partir_de_apps_U_B11_1[],2,FALSE),"") -> 15033795739 | G48: =IFERROR(VLOOKUP('Pilotage charte de postes'!H47*10+1,Tableau_Lancer_la_requête_à_partir_de_apps_U_B11_1[],2,FALSE),"") -> 58256031333 | H48: =IFERROR(VLOOKUP('Pilotage charte de postes'!I47*10+1,Tableau_Lancer_la_requête_à_partir_de_apps_U_B11_1[],2,FALSE),"") -> 1061 | I48: =IFERROR(VLOOKUP('Pilotage charte de postes'!J47*10+1,Tableau_Lancer_la_requête_à_partir_de_apps_U_B11_1[],2,FALSE),"") -> 490572326 | J48: =IFERROR(VLOOKUP('Pilotage charte de postes'!K47*10+1,Tableau_Lancer_la_requête_à_partir_de_apps_U_B11_1[],2,FALSE),"") -> 124444002 | K48: =IFERROR(VLOOKUP('Pilotage charte de postes'!L47*10+1,Tableau_Lancer_la_requête_à_partir_de_apps_U_B11_1[],2,FALSE),"") -> 615016328
A49: 81 -- Agriculture | D49: =IFERROR(VLOOKUP('Pilotage charte de postes'!D48*10+1,Tableau_Lancer_la_requête_à_partir_de_apps_U_B11_1[],2,FALSE),"") -> 111223 | E49: =IFERROR(VLOOKUP('Pilotage charte de postes'!E48*10+1,Tableau_Lancer_la_requête_à_partir_de_apps_U_B11_1[],2,FALSE),"") -> 40202238838 | F49: =IFERROR(VLOOKUP('Pilotage charte de postes'!F48*10+1,Tableau_Lancer_la_requête_à_partir_de_apps_U_B11_1[],2,FALSE),"") -> 13072549071 | G49: =IFERROR(VLOOKUP('Pilotage charte de postes'!H48*10+1,Tableau_Lancer_la_requête_à_partir_de_apps_U_B11_1[],2,FALSE),"") -> 53274787909 | H49: =IFERROR(VLOOKUP('Pilotage charte de postes'!I48*10+1,Tableau_Lancer_la_requête_à_partir_de_apps_U_B11_1[],2,FALSE),"") -> 516 | I49: =IFERROR(VLOOKUP('Pilotage charte de postes'!J48*10+1,Tableau_Lancer_la_requête_à_partir_de_apps_U_B11_1[],2,FALSE),"") -> 106623213 | J49: =IFERROR(VLOOKUP('Pilotage charte de postes'!K48*10+1,Tableau_Lancer_la_requête_à_partir_de_apps_U_B11_1[],2,FALSE),"") -> 71608605 | K49: =IFERROR(VLOOKUP('Pilotage charte de postes'!L48*10+1,Tableau_Lancer_la_requête_à_partir_de_apps_U_B11_1[],2,FALSE),"") -> 178231818
A50: 83 -- Exploitation forestière | D50: =IFERROR(VLOOKUP('Pilotage charte de postes'!D49*10+1,Tableau_Lancer_la_requête_à_partir_de_apps_U_B11_1[],2,FALSE),"") -> 21829 | E50: =IFERROR(VLOOKUP('Pilotage charte de postes'!E49*10+1,Tableau_Lancer_la_requête_à_partir_de_apps_U_B11_1[],2,FALSE),"") -> 2438924934 | F50: =IFERROR(VLOOKUP('Pilotage charte de postes'!F49*10+1,Tableau_Lancer_la_requête_à_partir_de_apps_U_B11_1[],2,FALSE),"") -> 456949178 | G50: =IFERROR(VLOOKUP('Pilotage charte de postes'!H49*10+1,Tableau_Lancer_la_requête_à_partir_de_apps_U_B11_1[],2,FALSE),"") -> 2895874112 | H50: =IFERROR(VLOOKUP('Pilotage charte de postes'!I49*10+1,Tableau_Lancer_la_requête_à_partir_de_apps_U_B11_1[],2,FALSE),"") -> 414 | I50: =IFERROR(VLOOKUP('Pilotage charte de postes'!J49*10+1,Tableau_Lancer_la_requête_à_partir_de_apps_U_B11_1[],2,FALSE),"") -> 314814816 | J50: =IFERROR(VLOOKUP('Pilotage charte de postes'!K49*10+1,Tableau_Lancer_la_requête_à_partir_de_apps_U_B11_1[],2,FALSE),"") -> 25082681 | K50: =IFERROR(VLOOKUP('Pilotage charte de postes'!L49*10+1,Tableau_Lancer_la_requête_à_partir_de_apps_U_B11_1[],2,FALSE),"") -> 339897497
A51: 85 -- Exploitation minière | D51: =IFERROR(VLOOKUP('Pilotage charte de postes'!D50*10+1,Tableau_Lancer_la_requête_à_partir_de_apps_U_B11_1[],2,FALSE),"") -> 1351 | E51: =IFERROR(VLOOKUP('Pilotage charte de postes'!E50*10+1,Tableau_Lancer_la_requête_à_partir_de_apps_U_B11_1[],2,FALSE),"") -> 455905148 | F51: =IFERROR(VLOOKUP('Pilotage charte de postes'!F50*10+1,Tableau_Lancer_la_requête_à_partir_de_apps_U_B11_1[],2,FALSE),"") -> 1333500438 | G51: =IFERROR(VLOOKUP('Pilotage charte de postes'!H50*10+1,Tableau_Lancer_la_requête_à_partir_de_apps_U_B11_1[],2,FALSE),"") -> 1789405586 | H51: =IFERROR(VLOOKUP('Pilotage charte de postes'!I50*10+1,Tableau_Lancer_la_requête_à_partir_de_apps_U_B11_1[],2,FALSE),"") -> 65 | I51: =IFERROR(VLOOKUP('Pilotage charte de postes'!J50*10+1,Tableau_Lancer_la_requête_à_partir_de_apps_U_B11_1[],2,FALSE),"") -> 59838831 | J51: =IFERROR(VLOOKUP('Pilotage charte de postes'!K50*10+1,Tableau_Lancer_la_requête_à_partir_de_apps_U_B11_1[],2,FALSE),"") -> 11257034 | K51: =IFERROR(VLOOKUP('Pilotage charte de postes'!L50*10+1,Tableau_Lancer_la_requête_à_partir_de_apps_U_B11_1[],2,FALSE),"") -> 71095865
A52: 9 --- TOTALE DE LA CATÉGORIE IMMEUBLES NON EXPLOITÉS, ÉTENDUES D'EAU | D52: =IFERROR(VLOOKUP('Pilotage charte de postes'!D51*10+1,Tableau_Lancer_la_requête_à_partir_de_apps_U_B11_1[],2,FALSE),"") -> 377281 | E52: =IFERROR(VLOOKUP('Pilotage charte de postes'!E51*10+1,Tableau_Lancer_la_requête_à_partir_de_apps_U_B11_1[],2,FALSE),"") -> 27444891041 | F52: =IFERROR(VLOOKUP('Pilotage charte de postes'!F51*10+1,Tableau_Lancer_la_requête_à_partir_de_apps_U_B11_1[],2,FALSE),"") -> 630307868 | G52: =IFERROR(VLOOKUP('Pilotage charte de postes'!H51*10+1,Tableau_Lancer_la_requête_à_partir_de_apps_U_B11_1[],2,FALSE),"") -> 28075198910 | H52: =IFERROR(VLOOKUP('Pilotage charte de postes'!I51*10+1,Tableau_Lancer_la_requête_à_partir_de_apps_U_B11_1[],2,FALSE),"") -> 78493 | I52: =IFERROR(VLOOKUP('Pilotage charte de postes'!J51*10+1,Tableau_Lancer_la_requête_à_partir_de_apps_U_B11_1[],2,FALSE),"") -> 16269085670 | J52: =IFERROR(VLOOKUP('Pilotage charte de postes'!K51*10+1,Tableau_Lancer_la_requête_à_partir_de_apps_U_B11_1[],2,FALSE),"") -> 64195471 | K52: =IFERROR(VLOOKUP('Pilotage charte de postes'!L51*10+1,Tableau_Lancer_la_requête_à_partir_de_apps_U_B11_1[],2,FALSE),"") -> 16333281141
A53: 91 -- Terrains vagues | D53: =IFERROR(VLOOKUP('Pilotage charte de postes'!D52*10+1,Tableau_Lancer_la_requête_à_partir_de_apps_U_B11_1[],2,FALSE),"") -> 323131 | E53: =IFERROR(VLOOKUP('Pilotage charte de postes'!E52*10+1,Tableau_Lancer_la_requête_à_partir_de_apps_U_B11_1[],2,FALSE),"") -> 23783330575 | F53: =IFERROR(VLOOKUP('Pilotage charte de postes'!F52*10+1,Tableau_Lancer_la_requête_à_partir_de_apps_U_B11_1[],2,FALSE),"") -> 10102369 | G53: =IFERROR(VLOOKUP('Pilotage charte de postes'!H52*10+1,Tableau_Lancer_la_requête_à_partir_de_apps_U_B11_1[],2,FALSE),"") -> 23793432944 | H53: =IFERROR(VLOOKUP('Pilotage charte de postes'!I52*10+1,Tableau_Lancer_la_requête_à_partir_de_apps_U_B11_1[],2,FALSE),"") -> 71591 | I53: =IFERROR(VLOOKUP('Pilotage charte de postes'!J52*10+1,Tableau_Lancer_la_requête_à_partir_de_apps_U_B11_1[],2,FALSE),"") -> 11522151230 | J53: =IFERROR(VLOOKUP('Pilotage charte de postes'!K52*10+1,Tableau_Lancer_la_requête_à_partir_de_apps_U_B11_1[],2,FALSE),"") -> 1730892 | K53: =IFERROR(VLOOKUP('Pilotage charte de postes'!L52*10+1,Tableau_Lancer_la_requête_à_partir_de_apps_U_B11_1[],2,FALSE),"") -> 11523882122
A54: 9220 -- Forêts inexploitées qui ne sont pas des réserves | D54: =IFERROR(VLOOKUP('Pilotage charte de postes'!D53*10+1,Tableau_Lancer_la_requête_à_partir_de_apps_U_B11_1[],2,FALSE),"") -> 44032 | E54: =IFERROR(VLOOKUP('Pilotage charte de postes'!E53*10+1,Tableau_Lancer_la_requête_à_partir_de_apps_U_B11_1[],2,FALSE),"") -> 2667463492 | F54: =IFERROR(VLOOKUP('Pilotage charte de postes'!F53*10+1,Tableau_Lancer_la_requête_à_partir_de_apps_U_B11_1[],2,FALSE),"") -> 67791392 | G54: =IFERROR(VLOOKUP('Pilotage charte de postes'!H53*10+1,Tableau_Lancer_la_requête_à_partir_de_apps_U_B11_1[],2,FALSE),"") -> 2735254884 | H54: =IFERROR(VLOOKUP('Pilotage charte de postes'!I53*10+1,Tableau_Lancer_la_requête_à_partir_de_apps_U_B11_1[],2,FALSE),"") -> 3997 | I54: =IFERROR(VLOOKUP('Pilotage charte de postes'!J53*10+1,Tableau_Lancer_la_requête_à_partir_de_apps_U_B11_1[],2,FALSE),"") -> 3795696709 | J54: =IFERROR(VLOOKUP('Pilotage charte de postes'!K53*10+1,Tableau_Lancer_la_requête_à_partir_de_apps_U_B11_1[],2,FALSE),"") -> 743325 | K54: =IFERROR(VLOOKUP('Pilotage charte de postes'!L53*10+1,Tableau_Lancer_la_requête_à_partir_de_apps_U_B11_1[],2,FALSE),"") -> 3796440034
A55: TOTAL DU RÔLE D'ÉVALUATION FONCIÈRE | D55: =IFERROR(VLOOKUP('Pilotage charte de postes'!D54*10+1,Tableau_Lancer_la_requête_à_partir_de_apps_U_B11_1[],2,FALSE),"") -> 3475701 | E55: =IFERROR(VLOOKUP('Pilotage charte de postes'!E54*10+1,Tableau_Lancer_la_requête_à_partir_de_apps_U_B11_1[],2,FALSE),"") -> 460102473483 | F55: =IFERROR(VLOOKUP('Pilotage charte de postes'!F54*10+1,Tableau_Lancer_la_requête_à_partir_de_apps_U_B11_1[],2,FALSE),"") -> 840899661185 | G55: =IFERROR(VLOOKUP('Pilotage charte de postes'!H54*10+1,Tableau_Lancer_la_requête_à_partir_de_apps_U_B11_1[],2,FALSE),"") -> 1301002134668 | H55: =IFERROR(VLOOKUP('Pilotage charte de postes'!I54*10+1,Tableau_Lancer_la_requête_à_partir_de_apps_U_B11_1[],2,FALSE),"") -> 183412 | I55: =IFERROR(VLOOKUP('Pilotage charte de postes'!J54*10+1,Tableau_Lancer_la_requête_à_partir_de_apps_U_B11_1[],2,FALSE),"") -> 64354029872 | J55: =IFERROR(VLOOKUP('Pilotage charte de postes'!K54*10+1,Tableau_Lancer_la_requête_à_partir_de_apps_U_B11_1[],2,FALSE),"") -> 85266910723 | K55: =IFERROR(VLOOKUP('Pilotage charte de postes'!L54*10+1,Tableau_Lancer_la_requête_à_partir_de_apps_U_B11_1[],2,FALSE),"") -> 149620940599

Sheet Provincial non uniformisé
A1: DONNÉES DE L'ÉVALUATION FONCIÈRE
A4: CATÉGORIE (Utilisation) | D4: VALEURS IMPOSABLES | H4: VALEURS NON IMPOSABLES
D5: NOMBRE | E5: TERRAINS | F5: BÂTIMENTS | G5: IMMEUBLES | H5: NOMBRE | I5: TERRAINS | J5: BÂTIMENTS | K5: IMMEUBLES
A6: 1-- TOTALE DE LA CATÉGORIE RÉSIDENTIELLE | D6: =IFERROR(VLOOKUP('Pilotage charte de postes'!D6*10,Tableau_Lancer_la_requête_à_partir_de_apps_U_B11_1[],2,FALSE),"") -> 2808549 | E6: =IFERROR(VLOOKUP('Pilotage charte de postes'!E6*10,Tableau_Lancer_la_requête_à_partir_de_apps_U_B11_1[],2,FALSE),"") -> 305575602674 | F6: =IFERROR(VLOOKUP('Pilotage charte de postes'!F6*10,Tableau_Lancer_la_requête_à_partir_de_apps_U_B11_1[],2,FALSE),"") -> 641272674481 | G6: =IFERROR(VLOOKUP('Pilotage charte de postes'!H6*10,Tableau_Lancer_la_requête_à_partir_de_apps_U_B11_1[],2,FALSE),"") -> 946848277155 | H6: =IFERROR(VLOOKUP('Pilotage charte de postes'!I6*10,Tableau_Lancer_la_requête_à_partir_de_apps_U_B11_1[],2,FALSE),"") -> 4917 | I6: =IFERROR(VLOOKUP('Pilotage charte de postes'!J6*10,Tableau_Lancer_la_requête_à_partir_de_apps_U_B11_1[],2,FALSE),"") -> 2174345876 | J6: =IFERROR(VLOOKUP('Pilotage charte de postes'!K6*10,Tableau_Lancer_la_requête_à_partir_de_apps_U_B11_1[],2,FALSE),"") -> 4274915803 | K6: =IFERROR(VLOOKUP('Pilotage charte de postes'!L6*10,Tableau_Lancer_la_requête_à_partir_de_apps_U_B11_1[],2,FALSE),"") -> 6449261679
A7: 10 -- Totale Logements | D7: =IFERROR(VLOOKUP('Pilotage charte de postes'!D7*10,Tableau_Lancer_la_requête_à_partir_de_apps_U_B11_1[],2,FALSE),"") -> 2548288 | E7: =IFERROR(VLOOKUP('Pilotage charte de postes'!E7*10,Tableau_Lancer_la_requête_à_partir_de_apps_U_B11_1[],2,FALSE),"") -> 289963053060 | F7: =IFERROR(VLOOKUP('Pilotage charte de postes'!F7*10,Tableau_Lancer_la_requête_à_partir_de_apps_U_B11_1[],2,FALSE),"") -> 608420562426 | G7: =IFERROR(VLOOKUP('Pilotage charte de postes'!H7*10,Tableau_Lancer_la_requête_à_partir_de_apps_U_B11_1[],2,FALSE),"") -> 898383615486 | H7: =IFERROR(VLOOKUP('Pilotage charte de postes'!I7*10,Tableau_Lancer_la_requête_à_partir_de_apps_U_B11_1[],2,FALSE),"") -> 1706 | I7: =IFERROR(VLOOKUP('Pilotage charte de postes'!J7*10,Tableau_Lancer_la_requête_à_partir_de_apps_U_B11_1[],2,FALSE),"") -> 303712363 | J7: =IFERROR(VLOOKUP('Pilotage charte de postes'!K7*10,Tableau_Lancer_la_requête_à_partir_de_apps_U_B11_1[],2,FALSE),"") -> 712375770 | K7: =IFERROR(VLOOKUP('Pilotage charte de postes'!L7*10,Tableau_Lancer_la_requête_à_partir_de_apps_U_B11_1[],2,FALSE),"") -> 1016088133
B8: 1 logement « condominium » | D8: =IFERROR(VLOOKUP('Pilotage charte de postes'!D8*10,Tableau_Lancer_la_requête_à_partir_de_apps_U_B11_1[],2,FALSE),"") -> 366527 | E8: =IFERROR(VLOOKUP('Pilotage charte de postes'!E8*10,Tableau_Lancer_la_requête_à_partir_de_apps_U_B11_1[],2,FALSE),"") -> 20778586207 | F8: =IFERROR(VLOOKUP('Pilotage charte de postes'!F8*10,Tableau_Lancer_la_requête_à_partir_de_apps_U_B11_1[],2,FALSE),"") -> 89343496100 | G8: =IFERROR(VLOOKUP('Pilotage charte de postes'!H8*10,Tableau_Lancer_la_requête_à_partir_de_apps_U_B11_1[],2,FALSE),"") -> 110122082307 | H8: =IFERROR(VLOOKUP('Pilotage charte de postes'!I8*10,Tableau_Lancer_la_requête_à_partir_de_apps_U_B11_1[],2,FALSE),"") -> 6 | I8: =IFERROR(VLOOKUP('Pilotage charte de postes'!J8*10,Tableau_Lancer_la_requête_à_partir_de_apps_U_B11_1[],2,FALSE),"") -> 472600 | J8: =IFERROR(VLOOKUP('Pilotage charte de postes'!K8*10,Tableau_Lancer_la_requête_à_partir_de_apps_U_B11_1[],2,FALSE),"") -> 1418700 | K8: =IFERROR(VLOOKUP('Pilotage charte de postes'!L8*10,Tableau_Lancer_la_requête_à_partir_de_apps_U_B11_1[],2,FALSE),"") -> 1891300
B9: 1 logement « sauf condominium » | D9: =IFERROR(VLOOKUP('Pilotage charte de postes'!D9*10,Tableau_Lancer_la_requête_à_partir_de_apps_U_B11_1[],2,FALSE),"") -> 1799690 | E9: =IFERROR(VLOOKUP('Pilotage charte de postes'!E9*10,Tableau_Lancer_la_requête_à_partir_de_apps_U_B11_1[],2,FALSE),"") -> 200577050316 | F9: =IFERROR(VLOOKUP('Pilotage charte de postes'!F9*10,Tableau_Lancer_la_requête_à_partir_de_apps_U_B11_1[],2,FALSE),"") -> 355220069643 | G9: =IFERROR(VLOOKUP('Pilotage charte de postes'!H9*10,Tableau_Lancer_la_requête_à_partir_de_apps_U_B11_1[],2,FALSE),"") -> 555797119959 | H9: =IFERROR(VLOOKUP('Pilotage charte de postes'!I9*10,Tableau_Lancer_la_requête_à_partir_de_apps_U_B11_1[],2,FALSE),"") -> 1337 | I9: =IFERROR(VLOOKUP('Pilotage charte de postes'!J9*10,Tableau_Lancer_la_requête_à_partir_de_apps_U_B11_1[],2,FALSE),"") -> 123480000 | J9: =IFERROR(VLOOKUP('Pilotage charte de postes'!K9*10,Tableau_Lancer_la_requête_à_partir_de_apps_U_B11_1[],2,FALSE),"") -> 215025650 | K9: =IFERROR(VLOOKUP('Pilotage charte de postes'!L9*10,Tableau_Lancer_la_requête_à_partir_de_apps_U_B11_1[],2,FALSE),"") -> 338505650
B10: 2 logements | D10: =IFERROR(VLOOKUP('Pilotage charte de postes'!D10*10,Tableau_Lancer_la_requête_à_partir_de_apps_U_B11_1[],2,FALSE),"") -> 190439 | E10: =IFERROR(VLOOKUP('Pilotage charte de postes'!E10*10,Tableau_Lancer_la_requête_à_partir_de_apps_U_B11_1[],2,FALSE),"") -> 24334846600 | F10: =IFERROR(VLOOKUP('Pilotage charte de postes'!F10*10,Tableau_Lancer_la_requête_à_partir_de_apps_U_B11_1[],2,FALSE),"") -> 45786671002 | G10: =IFERROR(VLOOKUP('Pilotage charte de postes'!H10*10,Tableau_Lancer_la_requête_à_partir_de_apps_U_B11_1[],2,FALSE),"") -> 70121517602 | H10: =IFERROR(VLOOKUP('Pilotage charte de postes'!I10*10,Tableau_Lancer_la_requête_à_partir_de_apps_U_B11_1[],2,FALSE),"") -> 188 | I10: =IFERROR(VLOOKUP('Pilotage charte de postes'!J10*10,Tableau_Lancer_la_requête_à_partir_de_apps_U_B11_1[],2,FALSE),"") -> 34437600 | J10: =IFERROR(VLOOKUP('Pilotage charte de postes'!K10*10,Tableau_Lancer_la_requête_à_partir_de_apps_U_B11_1[],2,FALSE),"") -> 55059400 | K10: =IFERROR(VLOOKUP('Pilotage charte de postes'!L10*10,Tableau_Lancer_la_requête_à_partir_de_apps_U_B11_1[],2,FALSE),"") -> 89497000
B11: 3 logements | D11: =IFERROR(VLOOKUP('Pilotage charte de postes'!D11*10,Tableau_Lancer_la_requête_à_partir_de_apps_U_B11_1[],2,FALSE),"") -> 85458 | E11: =IFERROR(VLOOKUP('Pilotage charte de postes'!E11*10,Tableau_Lancer_la_requête_à_partir_de_apps_U_B11_1[],2,FALSE),"") -> 13942710200 | F11: =IFERROR(VLOOKUP('Pilotage charte de postes'!F11*10,Tableau_Lancer_la_requête_à_partir_de_apps_U_B11_1[],2,FALSE),"") -> 28127548701 | G11: =IFERROR(VLOOKUP('Pilotage charte de postes'!H11*10,Tableau_Lancer_la_requête_à_partir_de_apps_U_B11_1[],2,FALSE),"") -> 42070258901 | H11: =IFERROR(VLOOKUP('Pilotage charte de postes'!I11*10,Tableau_Lancer_la_requête_à_partir_de_apps_U_B11_1[],2,FALSE),"") -> 41 | I11: =IFERROR(VLOOKUP('Pilotage charte de postes'!J11*10,Tableau_Lancer_la_requête_à_partir_de_apps_U_B11_1[],2,FALSE),"") -> 7606900 | J11: =IFERROR(VLOOKUP('Pilotage charte de postes'!K11*10,Tableau_Lancer_la_requête_à_partir_de_apps_U_B11_1[],2,FALSE),"") -> 14959800 | K11: =IFERROR(VLOOKUP('Pilotage charte de postes'!L11*10,Tableau_Lancer_la_requête_à_partir_de_apps_U_B11_1[],2,FALSE),"") -> 22566700
B12: 4 logements | D12: =IFERROR(VLOOKUP('Pilotage charte de postes'!D12*10,Tableau_Lancer_la_requête_à_partir_de_apps_U_B11_1[],2,FALSE),"") -> 39974 | E12: =IFERROR(VLOOKUP('Pilotage charte de postes'!E12*10,Tableau_Lancer_la_requête_à_partir_de_apps_U_B11_1[],2,FALSE),"") -> 6347115070 | F12: =IFERROR(VLOOKUP('Pilotage charte de postes'!F12*10,Tableau_Lancer_la_requête_à_partir_de_apps_U_B11_1[],2,FALSE),"") -> 14147745280 | G12: =IFERROR(VLOOKUP('Pilotage charte de postes'!H12*10,Tableau_Lancer_la_requête_à_partir_de_apps_U_B11_1[],2,FALSE),"") -> 20494860350 | H12: =IFERROR(VLOOKUP('Pilotage charte de postes'!I12*10,Tableau_Lancer_la_requête_à_partir_de_apps_U_B11_1[],2,FALSE),"") -> 27 | I12: =IFERROR(VLOOKUP('Pilotage charte de postes'!J12*10,Tableau_Lancer_la_requête_à_partir_de_apps_U_B11_1[],2,FALSE),"") -> 4864130 | J12: =IFERROR(VLOOKUP('Pilotage charte de postes'!K12*10,Tableau_Lancer_la_requête_à_partir_de_apps_U_B11_1[],2,FALSE),"") -> 19519720 | K12: =IFERROR(VLOOKUP('Pilotage charte de postes'!L12*10,Tableau_Lancer_la_requête_à_partir_de_apps_U_B11_1[],2,FALSE),"") -> 24383850
B13: 5 logements | D13: =IFERROR(VLOOKUP('Pilotage charte de postes'!D13*10,Tableau_Lancer_la_requête_à_partir_de_apps_U_B11_1[],2,FALSE),"") -> 11829 | E13: =IFERROR(VLOOKUP('Pilotage charte de postes'!E13*10,Tableau_Lancer_la_requête_à_partir_de_apps_U_B11_1[],2,FALSE),"") -> 2562376500 | F13: =IFERROR(VLOOKUP('Pilotage charte de postes'!F13*10,Tableau_Lancer_la_requête_à_partir_de_apps_U_B11_1[],2,FALSE),"") -> 5227985200 | G13: =IFERROR(VLOOKUP('Pilotage charte de postes'!H13*10,Tableau_Lancer_la_requête_à_partir_de_apps_U_B11_1[],2,FALSE),"") -> 7790361700 | H13: =IFERROR(VLOOKUP('Pilotage charte de postes'!I13*10,Tableau_Lancer_la_requête_à_partir_de_apps_U_B11_1[],2,FALSE),"") -> 9 | I13: =IFERROR(VLOOKUP('Pilotage charte de postes'!J13*10,Tableau_Lancer_la_requête_à_partir_de_apps_U_B11_1[],2,FALSE),"") -> 3231500 | J13: =IFERROR(VLOOKUP('Pilotage charte de postes'!K13*10,Tableau_Lancer_la_requête_à_partir_de_apps_U_B11_1[],2,FALSE),"") -> 5690500 | K13: =IFERROR(VLOOKUP('Pilotage charte de postes'!L13*10,Tableau_Lancer_la_requête_à_partir_de_apps_U_B11_1[],2,FALSE),"") -> 8922000
B14: 6 à 9 logements | D14: =IFERROR(VLOOKUP('Pilotage charte de postes'!D14*10,Tableau_Lancer_la_requête_à_partir_de_apps_U_B11_1[],2,FALSE),"") -> 35260 | E14: =IFERROR(VLOOKUP('Pilotage charte de postes'!E14*10,Tableau_Lancer_la_requête_à_partir_de_apps_U_B11_1[],2,FALSE),"") -> 7393052712 | F14: =IFERROR(VLOOKUP('Pilotage charte de postes'!F14*10,Tableau_Lancer_la_requête_à_partir_de_apps_U_B11_1[],2,FALSE),"") -> 18539733130 | G14: =IFERROR(VLOOKUP('Pilotage charte de postes'!H14*10,Tableau_Lancer_la_requête_à_partir_de_apps_U_B11_1[],2,FALSE),"") -> 25932785842 | H14: =IFERROR(VLOOKUP('Pilotage charte de postes'!I14*10,Tableau_Lancer_la_requête_à_partir_de_apps_U_B11_1[],2,FALSE),"") -> 33 | I14: =IFERROR(VLOOKUP('Pilotage charte de postes'!J14*10,Tableau_Lancer_la_requête_à_partir_de_apps_U_B11_1[],2,FALSE),"") -> 11329088 | J14: =IFERROR(VLOOKUP('Pilotage charte de postes'!K14*10,Tableau_Lancer_la_requête_à_partir_de_apps_U_B11_1[],2,FALSE),"") -> 22623670 | K14: =IFERROR(VLOOKUP('Pilotage charte de postes'!L14*10,Tableau_Lancer_la_requête_à_partir_de_apps_U_B11_1[],2,FALSE),"") -> 33952758
B15: 10 à 19 logements | D15: =IFERROR(VLOOKUP('Pilotage charte de postes'!D15*10,Tableau_Lancer_la_requête_à_partir_de_apps_U_B11_1[],2,FALSE),"") -> 11132 | E15: =IFERROR(VLOOKUP('Pilotage charte de postes'!E15*10,Tableau_Lancer_la_requête_à_partir_de_apps_U_B11_1[],2,FALSE),"") -> 4023817119 | F15: =IFERROR(VLOOKUP('Pilotage charte de postes'!F15*10,Tableau_Lancer_la_requête_à_partir_de_apps_U_B11_1[],2,FALSE),"") -> 11956308491 | G15: =IFERROR(VLOOKUP('Pilotage charte de postes'!H15*10,Tableau_Lancer_la_requête_à_partir_de_apps_U_B11_1[],2,FALSE),"") -> 15980125610 | H15: =IFERROR(VLOOKUP('Pilotage charte de postes'!I15*10,Tableau_Lancer_la_requête_à_partir_de_apps_U_B11_1[],2,FALSE),"") -> 38 | I15: =IFERROR(VLOOKUP('Pilotage charte de postes'!J15*10,Tableau_Lancer_la_requête_à_partir_de_apps_U_B11_1[],2,FALSE),"") -> 14947381 | J15: =IFERROR(VLOOKUP('Pilotage charte de postes'!K15*10,Tableau_Lancer_la_requête_à_partir_de_apps_U_B11_1[],2,FALSE),"") -> 63183509 | K15: =IFERROR(VLOOKUP('Pilotage charte de postes'!L15*10,Tableau_Lancer_la_requête_à_partir_de_apps_U_B11_1[],2,FALSE),"") -> 78130890
B16: 20 à 29 logements | D16: =IFERROR(VLOOKUP('Pilotage charte de postes'!D16*10,Tableau_Lancer_la_requête_à_partir_de_apps_U_B11_1[],2,FALSE),"") -> 3387 | E16: =IFERROR(VLOOKUP('Pilotage charte de postes'!E16*10,Tableau_Lancer_la_requête_à_partir_de_apps_U_B11_1[],2,FALSE),"") -> 1943250800 | F16: =IFERROR(VLOOKUP('Pilotage charte de postes'!F16*10,Tableau_Lancer_la_requête_à_partir_de_apps_U_B11_1[],2,FALSE),"") -> 6202392700 | G16: =IFERROR(VLOOKUP('Pilotage charte de postes'!H16*10,Tableau_Lancer_la_requête_à_partir_de_apps_U_B11_1[],2,FALSE),"") -> 8145643500 | H16: =IFERROR(VLOOKUP('Pilotage charte de postes'!I16*10,Tableau_Lancer_la_requête_à_partir_de_apps_U_B11_1[],2,FALSE),"") -> 12 | I16: =IFERROR(VLOOKUP('Pilotage charte de postes'!J16*10,Tableau_Lancer_la_requête_à_partir_de_apps_U_B11_1[],2,FALSE),"") -> 8414200 | J16: =IFERROR(VLOOKUP('Pilotage charte de postes'!K16*10,Tableau_Lancer_la_requête_à_partir_de_apps_U_B11_1[],2,FALSE),"") -> 39156400 | K16: =IFERROR(VLOOKUP('Pilotage charte de postes'!L16*10,Tableau_Lancer_la_requête_à_partir_de_apps_U_B11_1[],2,FALSE),"") -> 47570600
B17: 30 à 49 logements | D17: =IFERROR(VLOOKUP('Pilotage charte de postes'!D17*10,Tableau_Lancer_la_requête_à_partir_de_apps_U_B11_1[],2,FALSE),"") -> 2518 | E17: =IFERROR(VLOOKUP('Pilotage charte de postes'!E17*10,Tableau_Lancer_la_requête_à_partir_de_apps_U_B11_1[],2,FALSE),"") -> 2288631700 | F17: =IFERROR(VLOOKUP('Pilotage charte de postes'!F17*10,Tableau_Lancer_la_requête_à_partir_de_apps_U_B11_1[],2,FALSE),"") -> 7835148200 | G17: =IFERROR(VLOOKUP('Pilotage charte de postes'!H17*10,Tableau_Lancer_la_requête_à_partir_de_apps_U_B11_1[],2,FALSE),"") -> 10123779900 | H17: =IFERROR(VLOOKUP('Pilotage charte de postes'!I17*10,Tableau_Lancer_la_requête_à_partir_de_apps_U_B11_1[],2,FALSE),"") -> 4 | I17: =IFERROR(VLOOKUP('Pilotage charte de postes'!J17*10,Tableau_Lancer_la_requête_à_partir_de_apps_U_B11_1[],2,FALSE),"") -> 8674800 | J17: =IFERROR(VLOOKUP('Pilotage charte de postes'!K17*10,Tableau_Lancer_la_requête_à_partir_de_apps_U_B11_1[],2,FALSE),"") -> 34366900 | K17: =IFERROR(VLOOKUP('Pilotage charte de postes'!L17*10,Tableau_Lancer_la_requête_à_partir_de_apps_U_B11_1[],2,FALSE),"") -> 43041700
B18: 50 à 99 logements | D18: =IFERROR(VLOOKUP('Pilotage charte de postes'!D18*10,Tableau_Lancer_la_requête_à_partir_de_apps_U_B11_1[],2,FALSE),"") -> 1294 | E18: =IFERROR(VLOOKUP('Pilotage charte de postes'!E18*10,Tableau_Lancer_la_requête_à_partir_de_apps_U_B11_1[],2,FALSE),"") -> 2185799400 | F18: =IFERROR(VLOOKUP('Pilotage charte de postes'!F18*10,Tableau_Lancer_la_requête_à_partir_de_apps_U_B11_1[],2,FALSE),"") -> 8898044300 | G18: =IFERROR(VLOOKUP('Pilotage charte de postes'!H18*10,Tableau_Lancer_la_requête_à_partir_de_apps_U_B11_1[],2,FALSE),"") -> 11083843700 | H18: =IFERROR(VLOOKUP('Pilotage charte de postes'!I18*10,Tableau_Lancer_la_requête_à_partir_de_apps_U_B11_1[],2,FALSE),"") -> 3 | I18: =IFERROR(VLOOKUP('Pilotage charte de postes'!J18*10,Tableau_Lancer_la_requête_à_partir_de_apps_U_B11_1[],2,FALSE),"") -> 6831500 | J18: =IFERROR(VLOOKUP('Pilotage charte de postes'!K18*10,Tableau_Lancer_la_requête_à_partir_de_apps_U_B11_1[],2,FALSE),"") -> 34353500 | K18: =IFERROR(VLOOKUP('Pilotage charte de postes'!L18*10,Tableau_Lancer_la_requête_à_partir_de_apps_U_B11_1[],2,FALSE),"") -> 41185000
B19: 100 à 199 logements | D19: =IFERROR(VLOOKUP('Pilotage charte de postes'!D19*10,Tableau_Lancer_la_requête_à_partir_de_apps_U_B11_1[],2,FALSE),"") -> 602 | E19: =IFERROR(VLOOKUP('Pilotage charte de postes'!E19*10,Tableau_Lancer_la_requête_à_partir_de_apps_U_B11_1[],2,FALSE),"") -> 2062436136 | F19: =IFERROR(VLOOKUP('Pilotage charte de postes'!F19*10,Tableau_Lancer_la_requête_à_partir_de_apps_U_B11_1[],2,FALSE),"") -> 9771435779 | G19: =IFERROR(VLOOKUP('Pilotage charte de postes'!H19*10,Tableau_Lancer_la_requête_à_partir_de_apps_U_B11_1[],2,FALSE),"") -> 11833871915 | H19: =IFERROR(VLOOKUP('Pilotage charte de postes'!I19*10,Tableau_Lancer_la_requête_à_partir_de_apps_U_B11_1[],2,FALSE),"") -> 5 | I19: =IFERROR(VLOOKUP('Pilotage charte de postes'!J19*10,Tableau_Lancer_la_requête_à_partir_de_apps_U_B11_1[],2,FALSE),"") -> 41145364 | J19: =IFERROR(VLOOKUP('Pilotage charte de postes'!K19*10,Tableau_Lancer_la_requête_à_partir_de_apps_U_B11_1[],2,FALSE),"") -> 75409921 | K19: =IFERROR(VLOOKUP('Pilotage charte de postes'!L19*10,Tableau_Lancer_la_requête_à_partir_de_apps_U_B11_1[],2,FALSE),"") -> 116555285
B20: 200 logements et plus | D20: =IFERROR(VLOOKUP('Pilotage charte de postes'!D20*10,Tableau_Lancer_la_requête_à_partir_de_apps_U_B11_1[],2,FALSE),"") -> 178 | E20: =IFERROR(VLOOKUP('Pilotage charte de postes'!E20*10,Tableau_Lancer_la_requête_à_partir_de_apps_U_B11_1[],2,FALSE),"") -> 1523380300 | F20: =IFERROR(VLOOKUP('Pilotage charte de postes'!F20*10,Tableau_Lancer_la_requête_à_partir_de_apps_U_B11_1[],2,FALSE),"") -> 7363983900 | G20: =IFERROR(VLOOKUP('Pilotage charte de postes'!H20*10,Tableau_Lancer_la_requête_à_partir_de_apps_U_B11_1[],2,FALSE),"") -> 8887364200 | H20: =IFERROR(VLOOKUP('Pilotage charte de postes'!I20*10,Tableau_Lancer_la_requête_à_partir_de_apps_U_B11_1[],2,FALSE),"") -> 3 | I20: =IFERROR(VLOOKUP('Pilotage charte de postes'!J20*10,Tableau_Lancer_la_requête_à_partir_de_apps_U_B11_1[],2,FALSE),"") -> 38277300 | J20: =IFERROR(VLOOKUP('Pilotage charte de postes'!K20*10,Tableau_Lancer_la_requête_à_partir_de_apps_U_B11_1[],2,FALSE),"") -> 131608100 | K20: =IFERROR(VLOOKUP('Pilotage charte de postes'!L20*10,Tableau_Lancer_la_requête_à_partir_de_apps_U_B11_1[],2,FALSE),"") -> 169885400
A21: 11 -- Chalets, maisons de villégiatures | D21: =IFERROR(VLOOKUP('Pilotage charte de postes'!D21*10,Tableau_Lancer_la_requête_à_partir_de_apps_U_B11_1[],2,FALSE),"") -> 137186 | E21: =IFERROR(VLOOKUP('Pilotage charte de postes'!E21*10,Tableau_Lancer_la_requête_à_partir_de_apps_U_B11_1[],2,FALSE),"") -> 9439539500 | F21: =IFERROR(VLOOKUP('Pilotage charte de postes'!F21*10,Tableau_Lancer_la_requête_à_partir_de_apps_U_B11_1[],2,FALSE),"") -> 13257663100 | G21: =IFERROR(VLOOKUP('Pilotage charte de postes'!H21*10,Tableau_Lancer_la_requête_à_partir_de_apps_U_B11_1[],2,FALSE),"") -> 22697202600 | H21: =IFERROR(VLOOKUP('Pilotage charte de postes'!I21*10,Tableau_Lancer_la_requête_à_partir_de_apps_U_B11_1[],2,FALSE),"") -> 400 | I21: =IFERROR(VLOOKUP('Pilotage charte de postes'!J21*10,Tableau_Lancer_la_requête_à_partir_de_apps_U_B11_1[],2,FALSE),"") -> 161900900 | J21: =IFERROR(VLOOKUP('Pilotage charte de postes'!K21*10,Tableau_Lancer_la_requête_à_partir_de_apps_U_B11_1[],2,FALSE),"") -> 26504300 | K21: =IFERROR(VLOOKUP('Pilotage charte de postes'!L21*10,Tableau_Lancer_la_requête_à_partir_de_apps_U_B11_1[],2,FALSE),"") -> 188405200
A22: 12 -- Maisons mobiles, roulottes | D22: =IFERROR(VLOOKUP('Pilotage charte de postes'!D22*10,Tableau_Lancer_la_requête_à_partir_de_apps_U_B11_1[],2,FALSE),"") -> 46172 | E22: =IFERROR(VLOOKUP('Pilotage charte de postes'!E22*10,Tableau_Lancer_la_requête_à_partir_de_apps_U_B11_1[],2,FALSE),"") -> 1151462900 | F22: =IFERROR(VLOOKUP('Pilotage charte de postes'!F22*10,Tableau_Lancer_la_requête_à_partir_de_apps_U_B11_1[],2,FALSE),"") -> 3367641100 | G22: =IFERROR(VLOOKUP('Pilotage charte de postes'!H22*10,Tableau_Lancer_la_requête_à_partir_de_apps_U_B11_1[],2,FALSE),"") -> 4519104000 | H22: =IFERROR(VLOOKUP('Pilotage charte de postes'!I22*10,Tableau_Lancer_la_requête_à_partir_de_apps_U_B11_1[],2,FALSE),"") -> 149 | I22: =IFERROR(VLOOKUP('Pilotage charte de postes'!J22*10,Tableau_Lancer_la_requête_à_partir_de_apps_U_B11_1[],2,FALSE),"") -> 809300 | J22: =IFERROR(VLOOKUP('Pilotage charte de postes'!K22*10,Tableau_Lancer_la_requête_à_partir_de_apps_U_B11_1[],2,FALSE),"") -> 3660800 | K22: =IFERROR(VLOOKUP('Pilotage charte de postes'!L22*10,Tableau_Lancer_la_requête_à_partir_de_apps_U_B11_1[],2,FALSE),"") -> 4470100
A23: 15 -- Habitations en commun | D23: =IFERROR(VLOOKUP('Pilotage charte de postes'!D23*10,Tableau_Lancer_la_requête_à_partir_de_apps_U_B11_1[],2,FALSE),"") -> 4152 | E23: =IFERROR(VLOOKUP('Pilotage charte de postes'!E23*10,Tableau_Lancer_la_requête_à_partir_de_apps_U_B11_1[],2,FALSE),"") -> 2376887790 | F23: =IFERROR(VLOOKUP('Pilotage charte de postes'!F23*10,Tableau_Lancer_la_requête_à_partir_de_apps_U_B11_1[],2,FALSE),"") -> 14831664199 | G23: =IFERROR(VLOOKUP('Pilotage charte de postes'!H23*10,Tableau_Lancer_la_requête_à_partir_de_apps_U_B11_1[],2,FALSE),"") -> 17208551989 | H23: =IFERROR(VLOOKUP('Pilotage charte de postes'!I23*10,Tableau_Lancer_la_requête_à_partir_de_apps_U_B11_1[],2,FALSE),"") -> 1450 | I23: =IFERROR(VLOOKUP('Pilotage charte de postes'!J23*10,Tableau_Lancer_la_requête_à_partir_de_apps_U_B11_1[],2,FALSE),"") -> 1384838470 | J23: =IFERROR(VLOOKUP('Pilotage charte de postes'!K23*10,Tableau_Lancer_la_requête_à_partir_de_apps_U_B11_1[],2,FALSE),"") -> 3458577130 | K23: =IFERROR(VLOOKUP('Pilotage charte de postes'!L23*10,Tableau_Lancer_la_requête_à_partir_de_apps_U_B11_1[],2,FALSE),"") -> 4843415600
A24: 16 -- Hôtels résidentiels | D24: =IFERROR(VLOOKUP('Pilotage charte de postes'!D24*10,Tableau_Lancer_la_requête_à_partir_de_apps_U_B11_1[],2,FALSE),"") -> 28 | E24: =IFERROR(VLOOKUP('Pilotage charte de postes'!E24*10,Tableau_Lancer_la_requête_à_partir_de_apps_U_B11_1[],2,FALSE),"") -> 7558000 | F24: =IFERROR(VLOOKUP('Pilotage charte de postes'!F24*10,Tableau_Lancer_la_requête_à_partir_de_apps_U_B11_1[],2,FALSE),"") -> 16036500 | G24: =IFERROR(VLOOKUP('Pilotage charte de postes'!H24*10,Tableau_Lancer_la_requête_à_partir_de_apps_U_B11_1[],2,FALSE),"") -> 23594500 | H24: =IFERROR(VLOOKUP('Pilotage charte de postes'!I24*10,Tableau_Lancer_la_requête_à_partir_de_apps_U_B11_1[],2,FALSE),"") ->  | I24: =IFERROR(VLOOKUP('Pilotage charte de postes'!J24*10,Tableau_Lancer_la_requête_à_partir_de_apps_U_B11_1[],2,FALSE),"") ->  | J24: =IFERROR(VLOOKUP('Pilotage charte de postes'!K24*10,Tableau_Lancer_la_requête_à_partir_de_apps_U_B11_1[],2,FALSE),"") ->  | K24: =IFERROR(VLOOKUP('Pilotage charte de postes'!L24*10,Tableau_Lancer_la_requête_à_partir_de_apps_U_B11_1[],2,FALSE),"") -> 
A25: 17 -- Parcs de roulottes et de maisons mobiles | D25: =IFERROR(VLOOKUP('Pilotage charte de postes'!D25*10,Tableau_Lancer_la_requête_à_partir_de_apps_U_B11_1[],2,FALSE),"") -> 177 | E25: =IFERROR(VLOOKUP('Pilotage charte de postes'!E25*10,Tableau_Lancer_la_requête_à_partir_de_apps_U_B11_1[],2,FALSE),"") -> 133268100 | F25: =IFERROR(VLOOKUP('Pilotage charte de postes'!F25*10,Tableau_Lancer_la_requête_à_partir_de_apps_U_B11_1[],2,FALSE),"") -> 10240100 | G25: =IFERROR(VLOOKUP('Pilotage charte de postes'!H25*10,Tableau_Lancer_la_requête_à_partir_de_apps_U_B11_1[],2,FALSE),"") -> 143508200 | H25: =IFERROR(VLOOKUP('Pilotage charte de postes'!I25*10,Tableau_Lancer_la_requête_à_partir_de_apps_U_B11_1[],2,FALSE),"") -> 9 | I25: =IFERROR(VLOOKUP('Pilotage charte de postes'!J25*10,Tableau_Lancer_la_requête_à_partir_de_apps_U_B11_1[],2,FALSE),"") -> 784800 | J25: =IFERROR(VLOOKUP('Pilotage charte de postes'!K25*10,Tableau_Lancer_la_requête_à_partir_de_apps_U_B11_1[],2,FALSE),"") -> 2300 | K25: =IFERROR(VLOOKUP('Pilotage charte de postes'!L25*10,Tableau_Lancer_la_requête_à_partir_de_apps_U_B11_1[],2,FALSE),"") -> 787100
A26: 18 - 19 -- Autres immeubles résidentiels | D26: =IFERROR(VLOOKUP('Pilotage charte de postes'!D26*10,Tableau_Lancer_la_requête_à_partir_de_apps_U_B11_1[],2,FALSE),"") -> 72546 | E26: =IFERROR(VLOOKUP('Pilotage charte de postes'!E26*10,Tableau_Lancer_la_requête_à_partir_de_apps_U_B11_1[],2,FALSE),"") -> 2503833324 | F26: =IFERROR(VLOOKUP('Pilotage charte de postes'!F26*10,Tableau_Lancer_la_requête_à_partir_de_apps_U_B11_1[],2,FALSE),"") -> 1368867056 | G26: =IFERROR(VLOOKUP('Pilotage charte de postes'!H26*10,Tableau_Lancer_la_requête_à_partir_de_apps_U_B11_1[],2,FALSE),"") -> 3872700380 | H26: =IFERROR(VLOOKUP('Pilotage charte de postes'!I26*10,Tableau_Lancer_la_requête_à_partir_de_apps_U_B11_1[],2,FALSE),"") -> 1203 | I26: =IFERROR(VLOOKUP('Pilotage charte de postes'!J26*10,Tableau_Lancer_la_requête_à_partir_de_apps_U_B11_1[],2,FALSE),"") -> 322300043 | J26: =IFERROR(VLOOKUP('Pilotage charte de postes'!K26*10,Tableau_Lancer_la_requête_à_partir_de_apps_U_B11_1[],2,FALSE),"") -> 73795503 | K26: =IFERROR(VLOOKUP('Pilotage charte de postes'!L26*10,Tableau_Lancer_la_requête_à_partir_de_apps_U_B11_1[],2,FALSE),"") -> 396095546
A27: 2 - 3 --TOTALE DE LA CATÉGORIE INDUSTRIES MANUFACTURIÈRES | D27: =IFERROR(VLOOKUP('Pilotage charte de postes'!D27*10,Tableau_Lancer_la_requête_à_partir_de_apps_U_B11_1[],2,FALSE),"") -> 10819 | E27: =IFERROR(VLOOKUP('Pilotage charte de postes'!E27*10,Tableau_Lancer_la_requête_à_partir_de_apps_U_B11_1[],2,FALSE),"") -> 5870104200 | F27: =IFERROR(VLOOKUP('Pilotage charte de postes'!F27*10,Tableau_Lancer_la_requête_à_partir_de_apps_U_B11_1[],2,FALSE),"") -> 20565358600 | G27: =IFERROR(VLOOKUP('Pilotage charte de postes'!H27*10,Tableau_Lancer_la_requête_à_partir_de_apps_U_B11_1[],2,FALSE),"") -> 26435462800 | H27: =IFERROR(VLOOKUP('Pilotage charte de postes'!I27*10,Tableau_Lancer_la_requête_à_partir_de_apps_U_B11_1[],2,FALSE),"") -> 132 | I27: =IFERROR(VLOOKUP('Pilotage charte de postes'!J27*10,Tableau_Lancer_la_requête_à_partir_de_apps_U_B11_1[],2,FALSE),"") -> 214961201 | J27: =IFERROR(VLOOKUP('Pilotage charte de postes'!K27*10,Tableau_Lancer_la_requête_à_partir_de_apps_U_B11_1[],2,FALSE),"") -> 217236702 | K27: =IFERROR(VLOOKUP('Pilotage charte de postes'!L27*10,Tableau_Lancer_la_requête_à_partir_de_apps_U_B11_1[],2,FALSE),"") -> 432197903
A28: 2 - 3 -- Industries manufacturières sauf « condominium » | D28: =IFERROR(VLOOKUP('Pilotage charte de postes'!D28*10,Tableau_Lancer_la_requête_à_partir_de_apps_U_B11_1[],2,FALSE),"") -> 10108 | E28: =IFERROR(VLOOKUP('Pilotage charte de postes'!E28*10,Tableau_Lancer_la_requête_à_partir_de_apps_U_B11_1[],2,FALSE),"") -> 5751849300 | F28: =IFERROR(VLOOKUP('Pilotage charte de postes'!F28*10,Tableau_Lancer_la_requête_à_partir_de_apps_U_B11_1[],2,FALSE),"") -> 20228247300 | G28: =IFERROR(VLOOKUP('Pilotage charte de postes'!H28*10,Tableau_Lancer_la_requête_à_partir_de_apps_U_B11_1[],2,FALSE),"") -> 25980096600 | H28: =IFERROR(VLOOKUP('Pilotage charte de postes'!I28*10,Tableau_Lancer_la_requête_à_partir_de_apps_U_B11_1[],2,FALSE),"") -> 130 | I28: =IFERROR(VLOOKUP('Pilotage charte de postes'!J28*10,Tableau_Lancer_la_requête_à_partir_de_apps_U_B11_1[],2,FALSE),"") -> 214873401 | J28: =IFERROR(VLOOKUP('Pilotage charte de postes'!K28*10,Tableau_Lancer_la_requête_à_partir_de_apps_U_B11_1[],2,FALSE),"") -> 216882002 | K28: =IFERROR(VLOOKUP('Pilotage charte de postes'!L28*10,Tableau_Lancer_la_requête_à_partir_de_apps_U_B11_1[],2,FALSE),"") -> 431755403
A29: 2 - 3 -- Industries manufacturières « condominium » | D29: =IFERROR(VLOOKUP('Pilotage charte de postes'!D29*10,Tableau_Lancer_la_requête_à_partir_de_apps_U_B11_1[],2,FALSE),"") -> 711 | E29: =IFERROR(VLOOKUP('Pilotage charte de postes'!E29*10,Tableau_Lancer_la_requête_à_partir_de_apps_U_B11_1[],2,FALSE),"") -> 118254900 | F29: =IFERROR(VLOOKUP('Pilotage charte de postes'!F29*10,Tableau_Lancer_la_requête_à_partir_de_apps_U_B11_1[],2,FALSE),"") -> 337111300 | G29: =IFERROR(VLOOKUP('Pilotage charte de postes'!H29*10,Tableau_Lancer_la_requête_à_partir_de_apps_U_B11_1[],2,FALSE),"") -> 455366200 | H29: =IFERROR(VLOOKUP('Pilotage charte de postes'!I29*10,Tableau_Lancer_la_requête_à_partir_de_apps_U_B11_1[],2,FALSE),"") -> 2 | I29: =IFERROR(VLOOKUP('Pilotage charte de postes'!J29*10,Tableau_Lancer_la_requête_à_partir_de_apps_U_B11_1[],2,FALSE),"") -> 87800 | J29: =IFERROR(VLOOKUP('Pilotage charte de postes'!K29*10,Tableau_Lancer_la_requête_à_partir_de_apps_U_B11_1[],2,FALSE),"") -> 354700 | K29: =IFERROR(VLOOKUP('Pilotage charte de postes'!L29*10,Tableau_Lancer_la_requête_à_partir_de_apps_U_B11_1[],2,FALSE),"") -> 442500
A30: 4 --- TOTALE DE LA CATÉGORIE TRANSPORTS, COMM., SERVICES PUBLICS | D30: =IFERROR(VLOOKUP('Pilotage charte de postes'!D30*10,Tableau_Lancer_la_requête_à_partir_de_apps_U_B11_1[],2,FALSE),"") -> 49940 | E30: =IFERROR(VLOOKUP('Pilotage charte de postes'!E30*10,Tableau_Lancer_la_requête_à_partir_de_apps_U_B11_1[],2,FALSE),"") -> 6184222397 | F30: =IFERROR(VLOOKUP('Pilotage charte de postes'!F30*10,Tableau_Lancer_la_requête_à_partir_de_apps_U_B11_1[],2,FALSE),"") -> 6641749241 | G30: =IFERROR(VLOOKUP('Pilotage charte de postes'!H30*10,Tableau_Lancer_la_requête_à_partir_de_apps_U_B11_1[],2,FALSE),"") -> 12825971638 | H30: =IFERROR(VLOOKUP('Pilotage charte de postes'!I30*10,Tableau_Lancer_la_requête_à_partir_de_apps_U_B11_1[],2,FALSE),"") -> 69795 | I30: =IFERROR(VLOOKUP('Pilotage charte de postes'!J30*10,Tableau_Lancer_la_requête_à_partir_de_apps_U_B11_1[],2,FALSE),"") -> 5897200323 | J30: =IFERROR(VLOOKUP('Pilotage charte de postes'!K30*10,Tableau_Lancer_la_requête_à_partir_de_apps_U_B11_1[],2,FALSE),"") -> 7354844919 | K30: =IFERROR(VLOOKUP('Pilotage charte de postes'!L30*10,Tableau_Lancer_la_requête_à_partir_de_apps_U_B11_1[],2,FALSE),"") -> 13252045242
A31: 4111 Chemin de fer | D31: =IFERROR(VLOOKUP('Pilotage charte de postes'!D31*10,Tableau_Lancer_la_requête_à_partir_de_apps_U_B11_1[],2,FALSE),"") -> 914 | E31: =IFERROR(VLOOKUP('Pilotage charte de postes'!E31*10,Tableau_Lancer_la_requête_à_partir_de_apps_U_B11_1[],2,FALSE),"") -> 2264765601 | F31: =IFERROR(VLOOKUP('Pilotage charte de postes'!F31*10,Tableau_Lancer_la_requête_à_partir_de_apps_U_B11_1[],2,FALSE),"") -> 3089850 | G31: =IFERROR(VLOOKUP('Pilotage charte de postes'!H31*10,Tableau_Lancer_la_requête_à_partir_de_apps_U_B11_1[],2,FALSE),"") -> 2267855451 | H31: =IFERROR(VLOOKUP('Pilotage charte de postes'!I31*10,Tableau_Lancer_la_requête_à_partir_de_apps_U_B11_1[],2,FALSE),"") -> 263 | I31: =IFERROR(VLOOKUP('Pilotage charte de postes'!J31*10,Tableau_Lancer_la_requête_à_partir_de_apps_U_B11_1[],2,FALSE),"") -> 511011695 | J31: =IFERROR(VLOOKUP('Pilotage charte de postes'!K31*10,Tableau_Lancer_la_requête_à_partir_de_apps_U_B11_1[],2,FALSE),"") -> 1271400 | K31: =IFERROR(VLOOKUP('Pilotage charte de postes'!L31*10,Tableau_Lancer_la_requête_à_partir_de_apps_U_B11_1[],2,FALSE),"") -> 512283095
A32: 46 -- Terrains et garages de stationnement | D32: =IFERROR(VLOOKUP('Pilotage charte de postes'!D32*10,Tableau_Lancer_la_requête_à_partir_de_apps_U_B11_1[],2,FALSE),"") -> 3117 | E32: =IFERROR(VLOOKUP('Pilotage charte de postes'!E32*10,Tableau_Lancer_la_requête_à_partir_de_apps_U_B11_1[],2,FALSE),"") -> 1146486089 | F32: =IFERROR(VLOOKUP('Pilotage charte de postes'!F32*10,Tableau_Lancer_la_requête_à_partir_de_apps_U_B11_1[],2,FALSE),"") -> 280722042 | G32: =IFERROR(VLOOKUP('Pilotage charte de postes'!H32*10,Tableau_Lancer_la_requête_à_partir_de_apps_U_B11_1[],2,FALSE),"") -> 1427208131 | H32: =IFERROR(VLOOKUP('Pilotage charte de postes'!I32*10,Tableau_Lancer_la_requête_à_partir_de_apps_U_B11_1[],2,FALSE),"") -> 931 | I32: =IFERROR(VLOOKUP('Pilotage charte de postes'!J32*10,Tableau_Lancer_la_requête_à_partir_de_apps_U_B11_1[],2,FALSE),"") -> 626207341 | J32: =IFERROR(VLOOKUP('Pilotage charte de postes'!K32*10,Tableau_Lancer_la_requête_à_partir_de_apps_U_B11_1[],2,FALSE),"") -> 148672523 | K32: =IFERROR(VLOOKUP('Pilotage charte de postes'!L32*10,Tableau_Lancer_la_requête_à_partir_de_apps_U_B11_1[],2,FALSE),"") -> 774879864
A33: 5 --- TOTALE DE LA CATÉGORIE COMMERCIALE | D33: =IFERROR(VLOOKUP('Pilotage charte de postes'!D33*10,Tableau_Lancer_la_requête_à_partir_de_apps_U_B11_1[],2,FALSE),"") -> 52953 | E33: =IFERROR(VLOOKUP('Pilotage charte de postes'!E33*10,Tableau_Lancer_la_requête_à_partir_de_apps_U_B11_1[],2,FALSE),"") -> 27181748085 | F33: =IFERROR(VLOOKUP('Pilotage charte de postes'!F33*10,Tableau_Lancer_la_requête_à_partir_de_apps_U_B11_1[],2,FALSE),"") -> 52069814043 | G33: =IFERROR(VLOOKUP('Pilotage charte de postes'!H33*10,Tableau_Lancer_la_requête_à_partir_de_apps_U_B11_1[],2,FALSE),"") -> 79251562128 | H33: =IFERROR(VLOOKUP('Pilotage charte de postes'!I33*10,Tableau_Lancer_la_requête_à_partir_de_apps_U_B11_1[],2,FALSE),"") -> 610 | I33: =IFERROR(VLOOKUP('Pilotage charte de postes'!J33*10,Tableau_Lancer_la_requête_à_partir_de_apps_U_B11_1[],2,FALSE),"") -> 234571135 | J33: =IFERROR(VLOOKUP('Pilotage charte de postes'!K33*10,Tableau_Lancer_la_requête_à_partir_de_apps_U_B11_1[],2,FALSE),"") -> 434415822 | K33: =IFERROR(VLOOKUP('Pilotage charte de postes'!L33*10,Tableau_Lancer_la_requête_à_partir_de_apps_U_B11_1[],2,FALSE),"") -> 668986957
A34: 50 -- Centres et immeubles commerciaux | D34: =IFERROR(VLOOKUP('Pilotage charte de postes'!D34*10,Tableau_Lancer_la_requête_à_partir_de_apps_U_B11_1[],2,FALSE),"") -> 17359 | E34: =IFERROR(VLOOKUP('Pilotage charte de postes'!E34*10,Tableau_Lancer_la_requête_à_partir_de_apps_U_B11_1[],2,FALSE),"") -> 14659475716 | F34: =IFERROR(VLOOKUP('Pilotage charte de postes'!F34*10,Tableau_Lancer_la_requête_à_partir_de_apps_U_B11_1[],2,FALSE),"") -> 27429278884 | G34: =IFERROR(VLOOKUP('Pilotage charte de postes'!H34*10,Tableau_Lancer_la_requête_à_partir_de_apps_U_B11_1[],2,FALSE),"") -> 42088754600 | H34: =IFERROR(VLOOKUP('Pilotage charte de postes'!I34*10,Tableau_Lancer_la_requête_à_partir_de_apps_U_B11_1[],2,FALSE),"") -> 247 | I34: =IFERROR(VLOOKUP('Pilotage charte de postes'!J34*10,Tableau_Lancer_la_requête_à_partir_de_apps_U_B11_1[],2,FALSE),"") -> 139583356 | J34: =IFERROR(VLOOKUP('Pilotage charte de postes'!K34*10,Tableau_Lancer_la_requête_à_partir_de_apps_U_B11_1[],2,FALSE),"") -> 247218036 | K34: =IFERROR(VLOOKUP('Pilotage charte de postes'!L34*10,Tableau_Lancer_la_requête_à_partir_de_apps_U_B11_1[],2,FALSE),"") -> 386801392
A35: 51 -- Ventes en gros | D35: =IFERROR(VLOOKUP('Pilotage charte de postes'!D35*10,Tableau_Lancer_la_requête_à_partir_de_apps_U_B11_1[],2,FALSE),"") -> 1922 | E35: =IFERROR(VLOOKUP('Pilotage charte de postes'!E35*10,Tableau_Lancer_la_requête_à_partir_de_apps_U_B11_1[],2,FALSE),"") -> 1142695900 | F35: =IFERROR(VLOOKUP('Pilotage charte de postes'!F35*10,Tableau_Lancer_la_requête_à_partir_de_apps_U_B11_1[],2,FALSE),"") -> 2411196700 | G35: =IFERROR(VLOOKUP('Pilotage charte de postes'!H35*10,Tableau_Lancer_la_requête_à_partir_de_apps_U_B11_1[],2,FALSE),"") -> 3553892600 | H35: =IFERROR(VLOOKUP('Pilotage charte de postes'!I35*10,Tableau_Lancer_la_requête_à_partir_de_apps_U_B11_1[],2,FALSE),"") -> 9 | I35: =IFERROR(VLOOKUP('Pilotage charte de postes'!J35*10,Tableau_Lancer_la_requête_à_partir_de_apps_U_B11_1[],2,FALSE),"") -> 7777300 | J35: =IFERROR(VLOOKUP('Pilotage charte de postes'!K35*10,Tableau_Lancer_la_requête_à_partir_de_apps_U_B11_1[],2,FALSE),"") -> 13159400 | K35: =IFERROR(VLOOKUP('Pilotage charte de postes'!L35*10,Tableau_Lancer_la_requête_à_partir_de_apps_U_B11_1[],2,FALSE),"") -> 20936700
A36: 52 à 59 -- Ventes au détail (sauf 583 -) | D36: =IFERROR(VLOOKUP('Pilotage charte de postes'!D36*10,Tableau_Lancer_la_requête_à_partir_de_apps_U_B11_1[],2,FALSE),"") -> 22741 | E36: =IFERROR(VLOOKUP('Pilotage charte de postes'!E36*10,Tableau_Lancer_la_requête_à_partir_de_apps_U_B11_1[],2,FALSE),"") -> 9571088668 | F36: =IFERROR(VLOOKUP('Pilotage charte de postes'!F36*10,Tableau_Lancer_la_requête_à_partir_de_apps_U_B11_1[],2,FALSE),"") -> 16250196950 | G36: =IFERROR(VLOOKUP('Pilotage charte de postes'!H36*10,Tableau_Lancer_la_requête_à_partir_de_apps_U_B11_1[],2,FALSE),"") -> 25821285618 | H36: =IFERROR(VLOOKUP('Pilotage charte de postes'!I36*10,Tableau_Lancer_la_requête_à_partir_de_apps_U_B11_1[],2,FALSE),"") -> 298 | I36: =IFERROR(VLOOKUP('Pilotage charte de postes'!J36*10,Tableau_Lancer_la_requête_à_partir_de_apps_U_B11_1[],2,FALSE),"") -> 74831368 | J36: =IFERROR(VLOOKUP('Pilotage charte de postes'!K36*10,Tableau_Lancer_la_requête_à_partir_de_apps_U_B11_1[],2,FALSE),"") -> 148275286 | K36: =IFERROR(VLOOKUP('Pilotage charte de postes'!L36*10,Tableau_Lancer_la_requête_à_partir_de_apps_U_B11_1[],2,FALSE),"") -> 223106654
A37: 583 -- Hôtels, motels et maisons de touristes | D37: =IFERROR(VLOOKUP('Pilotage charte de postes'!D37*10,Tableau_Lancer_la_requête_à_partir_de_apps_U_B11_1[],2,FALSE),"") -> 10931 | E37: =IFERROR(VLOOKUP('Pilotage charte de postes'!E37*10,Tableau_Lancer_la_requête_à_partir_de_apps_U_B11_1[],2,FALSE),"") -> 1808487801 | F37: =IFERROR(VLOOKUP('Pilotage charte de postes'!F37*10,Tableau_Lancer_la_requête_à_partir_de_apps_U_B11_1[],2,FALSE),"") -> 5979141509 | G37: =IFERROR(VLOOKUP('Pilotage charte de postes'!H37*10,Tableau_Lancer_la_requête_à_partir_de_apps_U_B11_1[],2,FALSE),"") -> 7787629310 | H37: =IFERROR(VLOOKUP('Pilotage charte de postes'!I37*10,Tableau_Lancer_la_requête_à_partir_de_apps_U_B11_1[],2,FALSE),"") -> 56 | I37: =IFERROR(VLOOKUP('Pilotage charte de postes'!J37*10,Tableau_Lancer_la_requête_à_partir_de_apps_U_B11_1[],2,FALSE),"") -> 12379111 | J37: =IFERROR(VLOOKUP('Pilotage charte de postes'!K37*10,Tableau_Lancer_la_requête_à_partir_de_apps_U_B11_1[],2,FALSE),"") -> 25763100 | K37: =IFERROR(VLOOKUP('Pilotage charte de postes'!L37*10,Tableau_Lancer_la_requête_à_partir_de_apps_U_B11_1[],2,FALSE),"") -> 38142211
A38: 5 --- Commerciale sauf « condominium » | D38: =IFERROR(VLOOKUP('Pilotage charte de postes'!D38*10,Tableau_Lancer_la_requête_à_partir_de_apps_U_B11_1[],2,FALSE),"") -> 43547 | E38: =IFERROR(VLOOKUP('Pilotage charte de postes'!E38*10,Tableau_Lancer_la_requête_à_partir_de_apps_U_B11_1[],2,FALSE),"") -> 26093940084 | F38: =IFERROR(VLOOKUP('Pilotage charte de postes'!F38*10,Tableau_Lancer_la_requête_à_partir_de_apps_U_B11_1[],2,FALSE),"") -> 48032069742 | G38: =IFERROR(VLOOKUP('Pilotage charte de postes'!H38*10,Tableau_Lancer_la_requête_à_partir_de_apps_U_B11_1[],2,FALSE),"") -> 74126009826 | H38: =IFERROR(VLOOKUP('Pilotage charte de postes'!I38*10,Tableau_Lancer_la_requête_à_partir_de_apps_U_B11_1[],2,FALSE),"") -> 597 | I38: =IFERROR(VLOOKUP('Pilotage charte de postes'!J38*10,Tableau_Lancer_la_requête_à_partir_de_apps_U_B11_1[],2,FALSE),"") -> 228995835 | J38: =IFERROR(VLOOKUP('Pilotage charte de postes'!K38*10,Tableau_Lancer_la_requête_à_partir_de_apps_U_B11_1[],2,FALSE),"") -> 420397622 | K38: =IFERROR(VLOOKUP('Pilotage charte de postes'!L38*10,Tableau_Lancer_la_requête_à_partir_de_apps_U_B11_1[],2,FALSE),"") -> 649393457
A39: 5 --- Commerciale « condominium » | D39: =IFERROR(VLOOKUP('Pilotage charte de postes'!D39*10,Tableau_Lancer_la_requête_à_partir_de_apps_U_B11_1[],2,FALSE),"") -> 9406 | E39: =IFERROR(VLOOKUP('Pilotage charte de postes'!E39*10,Tableau_Lancer_la_requête_à_partir_de_apps_U_B11_1[],2,FALSE),"") -> 1087808001 | F39: =IFERROR(VLOOKUP('Pilotage charte de postes'!F39*10,Tableau_Lancer_la_requête_à_partir_de_apps_U_B11_1[],2,FALSE),"") -> 4037744301 | G39: =IFERROR(VLOOKUP('Pilotage charte de postes'!H39*10,Tableau_Lancer_la_requête_à_partir_de_apps_U_B11_1[],2,FALSE),"") -> 5125552302 | H39: =IFERROR(VLOOKUP('Pilotage charte de postes'!I39*10,Tableau_Lancer_la_requête_à_partir_de_apps_U_B11_1[],2,FALSE),"") -> 13 | I39: =IFERROR(VLOOKUP('Pilotage charte de postes'!J39*10,Tableau_Lancer_la_requête_à_partir_de_apps_U_B11_1[],2,FALSE),"") -> 5575300 | J39: =IFERROR(VLOOKUP('Pilotage charte de postes'!K39*10,Tableau_Lancer_la_requête_à_partir_de_apps_U_B11_1[],2,FALSE),"") -> 14018200 | K39: =IFERROR(VLOOKUP('Pilotage charte de postes'!L39*10,Tableau_Lancer_la_requête_à_partir_de_apps_U_B11_1[],2,FALSE),"") -> 19593500
A40: 6 ---TOTALE DE LA CATÉGORIE SERVICES | D40: =IFERROR(VLOOKUP('Pilotage charte de postes'!D40*10,Tableau_Lancer_la_requête_à_partir_de_apps_U_B11_1[],2,FALSE),"") -> 35189 | E40: =IFERROR(VLOOKUP('Pilotage charte de postes'!E40*10,Tableau_Lancer_la_requête_à_partir_de_apps_U_B11_1[],2,FALSE),"") -> 14187515494 | F40: =IFERROR(VLOOKUP('Pilotage charte de postes'!F40*10,Tableau_Lancer_la_requête_à_partir_de_apps_U_B11_1[],2,FALSE),"") -> 40539061822 | G40: =IFERROR(VLOOKUP('Pilotage charte de postes'!H40*10,Tableau_Lancer_la_requête_à_partir_de_apps_U_B11_1[],2,FALSE),"") -> 54726577316 | H40: =IFERROR(VLOOKUP('Pilotage charte de postes'!I40*10,Tableau_Lancer_la_requête_à_partir_de_apps_U_B11_1[],2,FALSE),"") -> 15728 | I40: =IFERROR(VLOOKUP('Pilotage charte de postes'!J40*10,Tableau_Lancer_la_requête_à_partir_de_apps_U_B11_1[],2,FALSE),"") -> 18650024437 | J40: =IFERROR(VLOOKUP('Pilotage charte de postes'!K40*10,Tableau_Lancer_la_requête_à_partir_de_apps_U_B11_1[],2,FALSE),"") -> 56842980557 | K40: =IFERROR(VLOOKUP('Pilotage charte de postes'!L40*10,Tableau_Lancer_la_requête_à_partir_de_apps_U_B11_1[],2,FALSE),"") -> 75493004994
A41: 60 -- Immeubles à bureaux | D41: =IFERROR(VLOOKUP('Pilotage charte de postes'!D41*10,Tableau_Lancer_la_requête_à_partir_de_apps_U_B11_1[],2,FALSE),"") -> 4083 | E41: =IFERROR(VLOOKUP('Pilotage charte de postes'!E41*10,Tableau_Lancer_la_requête_à_partir_de_apps_U_B11_1[],2,FALSE),"") -> 6688582532 | F41: =IFERROR(VLOOKUP('Pilotage charte de postes'!F41*10,Tableau_Lancer_la_requête_à_partir_de_apps_U_B11_1[],2,FALSE),"") -> 23069606268 | G41: =IFERROR(VLOOKUP('Pilotage charte de postes'!H41*10,Tableau_Lancer_la_requête_à_partir_de_apps_U_B11_1[],2,FALSE),"") -> 29758188800 | H41: =IFERROR(VLOOKUP('Pilotage charte de postes'!I41*10,Tableau_Lancer_la_requête_à_partir_de_apps_U_B11_1[],2,FALSE),"") -> 609 | I41: =IFERROR(VLOOKUP('Pilotage charte de postes'!J41*10,Tableau_Lancer_la_requête_à_partir_de_apps_U_B11_1[],2,FALSE),"") -> 852567860 | J41: =IFERROR(VLOOKUP('Pilotage charte de postes'!K41*10,Tableau_Lancer_la_requête_à_partir_de_apps_U_B11_1[],2,FALSE),"") -> 2677894560 | K41: =IFERROR(VLOOKUP('Pilotage charte de postes'!L41*10,Tableau_Lancer_la_requête_à_partir_de_apps_U_B11_1[],2,FALSE),"") -> 3530462420
A42: 6 -- Services sauf « condominium » | D42: =IFERROR(VLOOKUP('Pilotage charte de postes'!D42*10,Tableau_Lancer_la_requête_à_partir_de_apps_U_B11_1[],2,FALSE),"") -> 30816 | E42: =IFERROR(VLOOKUP('Pilotage charte de postes'!E42*10,Tableau_Lancer_la_requête_à_partir_de_apps_U_B11_1[],2,FALSE),"") -> 12929175993 | F42: =IFERROR(VLOOKUP('Pilotage charte de postes'!F42*10,Tableau_Lancer_la_requête_à_partir_de_apps_U_B11_1[],2,FALSE),"") -> 35936598721 | G42: =IFERROR(VLOOKUP('Pilotage charte de postes'!H42*10,Tableau_Lancer_la_requête_à_partir_de_apps_U_B11_1[],2,FALSE),"") -> 48865774714 | H42: =IFERROR(VLOOKUP('Pilotage charte de postes'!I42*10,Tableau_Lancer_la_requête_à_partir_de_apps_U_B11_1[],2,FALSE),"") -> 15552 | I42: =IFERROR(VLOOKUP('Pilotage charte de postes'!J42*10,Tableau_Lancer_la_requête_à_partir_de_apps_U_B11_1[],2,FALSE),"") -> 18513603537 | J42: =IFERROR(VLOOKUP('Pilotage charte de postes'!K42*10,Tableau_Lancer_la_requête_à_partir_de_apps_U_B11_1[],2,FALSE),"") -> 56460298757 | K42: =IFERROR(VLOOKUP('Pilotage charte de postes'!L42*10,Tableau_Lancer_la_requête_à_partir_de_apps_U_B11_1[],2,FALSE),"") -> 74973902294
A43: 6 -- Services « condominium » | D43: =IFERROR(VLOOKUP('Pilotage charte de postes'!D43*10,Tableau_Lancer_la_requête_à_partir_de_apps_U_B11_1[],2,FALSE),"") -> 4373 | E43: =IFERROR(VLOOKUP('Pilotage charte de postes'!E43*10,Tableau_Lancer_la_requête_à_partir_de_apps_U_B11_1[],2,FALSE),"") -> 1258339501 | F43: =IFERROR(VLOOKUP('Pilotage charte de postes'!F43*10,Tableau_Lancer_la_requête_à_partir_de_apps_U_B11_1[],2,FALSE),"") -> 4602463101 | G43: =IFERROR(VLOOKUP('Pilotage charte de postes'!H43*10,Tableau_Lancer_la_requête_à_partir_de_apps_U_B11_1[],2,FALSE),"") -> 5860802602 | H43: =IFERROR(VLOOKUP('Pilotage charte de postes'!I43*10,Tableau_Lancer_la_requête_à_partir_de_apps_U_B11_1[],2,FALSE),"") -> 176 | I43: =IFERROR(VLOOKUP('Pilotage charte de postes'!J43*10,Tableau_Lancer_la_requête_à_partir_de_apps_U_B11_1[],2,FALSE),"") -> 136420900 | J43: =IFERROR(VLOOKUP('Pilotage charte de postes'!K43*10,Tableau_Lancer_la_requête_à_partir_de_apps_U_B11_1[],2,FALSE),"") -> 382681800 | K43: =IFERROR(VLOOKUP('Pilotage charte de postes'!L43*10,Tableau_Lancer_la_requête_à_partir_de_apps_U_B11_1[],2,FALSE),"") -> 519102700
A44: 7 --- TOTALE DE LA CATÉGORIE CULTURELLE, RÉCRÉATIVE ET DE LOISIRS | D44: =IFERROR(VLOOKUP('Pilotage charte de postes'!D44*10,Tableau_Lancer_la_requête_à_partir_de_apps_U_B11_1[],2,FALSE),"") -> 5245 | E44: =IFERROR(VLOOKUP('Pilotage charte de postes'!E44*10,Tableau_Lancer_la_requête_à_partir_de_apps_U_B11_1[],2,FALSE),"") -> 2025788607 | F44: =IFERROR(VLOOKUP('Pilotage charte de postes'!F44*10,Tableau_Lancer_la_requête_à_partir_de_apps_U_B11_1[],2,FALSE),"") -> 4305091973 | G44: =IFERROR(VLOOKUP('Pilotage charte de postes'!H44*10,Tableau_Lancer_la_requête_à_partir_de_apps_U_B11_1[],2,FALSE),"") -> 6330880580 | H44: =IFERROR(VLOOKUP('Pilotage charte de postes'!I44*10,Tableau_Lancer_la_requête_à_partir_de_apps_U_B11_1[],2,FALSE),"") -> 12676 | I44: =IFERROR(VLOOKUP('Pilotage charte de postes'!J44*10,Tableau_Lancer_la_requête_à_partir_de_apps_U_B11_1[],2,FALSE),"") -> 15735054035 | J44: =IFERROR(VLOOKUP('Pilotage charte de postes'!K44*10,Tableau_Lancer_la_requête_à_partir_de_apps_U_B11_1[],2,FALSE),"") -> 9591411953 | K44: =IFERROR(VLOOKUP('Pilotage charte de postes'!L44*10,Tableau_Lancer_la_requête_à_partir_de_apps_U_B11_1[],2,FALSE),"") -> 25326465988
A45: 7411 - 7412 Terrains de golf | D45: =IFERROR(VLOOKUP('Pilotage charte de postes'!D45*10,Tableau_Lancer_la_requête_à_partir_de_apps_U_B11_1[],2,FALSE),"") -> 390 | E45: =IFERROR(VLOOKUP('Pilotage charte de postes'!E45*10,Tableau_Lancer_la_requête_à_partir_de_apps_U_B11_1[],2,FALSE),"") -> 343082138 | F45: =IFERROR(VLOOKUP('Pilotage charte de postes'!F45*10,Tableau_Lancer_la_requête_à_partir_de_apps_U_B11_1[],2,FALSE),"") -> 307252246 | G45: =IFERROR(VLOOKUP('Pilotage charte de postes'!H45*10,Tableau_Lancer_la_requête_à_partir_de_apps_U_B11_1[],2,FALSE),"") -> 650334384 | H45: =IFERROR(VLOOKUP('Pilotage charte de postes'!I45*10,Tableau_Lancer_la_requête_à_partir_de_apps_U_B11_1[],2,FALSE),"") -> 26 | I45: =IFERROR(VLOOKUP('Pilotage charte de postes'!J45*10,Tableau_Lancer_la_requête_à_partir_de_apps_U_B11_1[],2,FALSE),"") -> 137244464 | J45: =IFERROR(VLOOKUP('Pilotage charte de postes'!K45*10,Tableau_Lancer_la_requête_à_partir_de_apps_U_B11_1[],2,FALSE),"") -> 341508256 | K45: =IFERROR(VLOOKUP('Pilotage charte de postes'!L45*10,Tableau_Lancer_la_requête_à_partir_de_apps_U_B11_1[],2,FALSE),"") -> 478752720
A46: 76 -- Parcs | D46: =IFERROR(VLOOKUP('Pilotage charte de postes'!D46*10,Tableau_Lancer_la_requête_à_partir_de_apps_U_B11_1[],2,FALSE),"") -> 873 | E46: =IFERROR(VLOOKUP('Pilotage charte de postes'!E46*10,Tableau_Lancer_la_requête_à_partir_de_apps_U_B11_1[],2,FALSE),"") -> 74748704 | F46: =IFERROR(VLOOKUP('Pilotage charte de postes'!F46*10,Tableau_Lancer_la_requête_à_partir_de_apps_U_B11_1[],2,FALSE),"") -> 55607701 | G46: =IFERROR(VLOOKUP('Pilotage charte de postes'!H46*10,Tableau_Lancer_la_requête_à_partir_de_apps_U_B11_1[],2,FALSE),"") -> 130356405 | H46: =IFERROR(VLOOKUP('Pilotage charte de postes'!I46*10,Tableau_Lancer_la_requête_à_partir_de_apps_U_B11_1[],2,FALSE),"") -> 6678 | I46: =IFERROR(VLOOKUP('Pilotage charte de postes'!J46*10,Tableau_Lancer_la_requête_à_partir_de_apps_U_B11_1[],2,FALSE),"") -> 9464432587 | J46: =IFERROR(VLOOKUP('Pilotage charte de postes'!K46*10,Tableau_Lancer_la_requête_à_partir_de_apps_U_B11_1[],2,FALSE),"") -> 1080001317 | K46: =IFERROR(VLOOKUP('Pilotage charte de postes'!L46*10,Tableau_Lancer_la_requête_à_partir_de_apps_U_B11_1[],2,FALSE),"") -> 10544433904
A47: 8 --- TOTALE DE LA CATÉGORIE PRODUCTION, EXT. DE RICHESSES NAT. | D47: =IFERROR(VLOOKUP('Pilotage charte de postes'!D47*10,Tableau_Lancer_la_requête_à_partir_de_apps_U_B11_1[],2,FALSE),"") -> 135725 | E47: =IFERROR(VLOOKUP('Pilotage charte de postes'!E47*10,Tableau_Lancer_la_requête_à_partir_de_apps_U_B11_1[],2,FALSE),"") -> 41416685370 | F47: =IFERROR(VLOOKUP('Pilotage charte de postes'!F47*10,Tableau_Lancer_la_requête_à_partir_de_apps_U_B11_1[],2,FALSE),"") -> 14429374070 | G47: =IFERROR(VLOOKUP('Pilotage charte de postes'!H47*10,Tableau_Lancer_la_requête_à_partir_de_apps_U_B11_1[],2,FALSE),"") -> 55846059440 | H47: =IFERROR(VLOOKUP('Pilotage charte de postes'!I47*10,Tableau_Lancer_la_requête_à_partir_de_apps_U_B11_1[],2,FALSE),"") -> 1061 | I47: =IFERROR(VLOOKUP('Pilotage charte de postes'!J47*10,Tableau_Lancer_la_requête_à_partir_de_apps_U_B11_1[],2,FALSE),"") -> 473019320 | J47: =IFERROR(VLOOKUP('Pilotage charte de postes'!K47*10,Tableau_Lancer_la_requête_à_partir_de_apps_U_B11_1[],2,FALSE),"") -> 121848407 | K47: =IFERROR(VLOOKUP('Pilotage charte de postes'!L47*10,Tableau_Lancer_la_requête_à_partir_de_apps_U_B11_1[],2,FALSE),"") -> 594867727
A48: 81 -- Agriculture | D48: =IFERROR(VLOOKUP('Pilotage charte de postes'!D48*10,Tableau_Lancer_la_requête_à_partir_de_apps_U_B11_1[],2,FALSE),"") -> 111223 | E48: =IFERROR(VLOOKUP('Pilotage charte de postes'!E48*10,Tableau_Lancer_la_requête_à_partir_de_apps_U_B11_1[],2,FALSE),"") -> 38508204800 | F48: =IFERROR(VLOOKUP('Pilotage charte de postes'!F48*10,Tableau_Lancer_la_requête_à_partir_de_apps_U_B11_1[],2,FALSE),"") -> 12508126000 | G48: =IFERROR(VLOOKUP('Pilotage charte de postes'!H48*10,Tableau_Lancer_la_requête_à_partir_de_apps_U_B11_1[],2,FALSE),"") -> 51016330800 | H48: =IFERROR(VLOOKUP('Pilotage charte de postes'!I48*10,Tableau_Lancer_la_requête_à_partir_de_apps_U_B11_1[],2,FALSE),"") -> 516 | I48: =IFERROR(VLOOKUP('Pilotage charte de postes'!J48*10,Tableau_Lancer_la_requête_à_partir_de_apps_U_B11_1[],2,FALSE),"") -> 103839200 | J48: =IFERROR(VLOOKUP('Pilotage charte de postes'!K48*10,Tableau_Lancer_la_requête_à_partir_de_apps_U_B11_1[],2,FALSE),"") -> 70606501 | K48: =IFERROR(VLOOKUP('Pilotage charte de postes'!L48*10,Tableau_Lancer_la_requête_à_partir_de_apps_U_B11_1[],2,FALSE),"") -> 174445701
A49: 83 -- Exploitation forestière | D49: =IFERROR(VLOOKUP('Pilotage charte de postes'!D49*10,Tableau_Lancer_la_requête_à_partir_de_apps_U_B11_1[],2,FALSE),"") -> 21829 | E49: =IFERROR(VLOOKUP('Pilotage charte de postes'!E49*10,Tableau_Lancer_la_requête_à_partir_de_apps_U_B11_1[],2,FALSE),"") -> 2346920270 | F49: =IFERROR(VLOOKUP('Pilotage charte de postes'!F49*10,Tableau_Lancer_la_requête_à_partir_de_apps_U_B11_1[],2,FALSE),"") -> 436124000 | G49: =IFERROR(VLOOKUP('Pilotage charte de postes'!H49*10,Tableau_Lancer_la_requête_à_partir_de_apps_U_B11_1[],2,FALSE),"") -> 2783044270 | H49: =IFERROR(VLOOKUP('Pilotage charte de postes'!I49*10,Tableau_Lancer_la_requête_à_partir_de_apps_U_B11_1[],2,FALSE),"") -> 414 | I49: =IFERROR(VLOOKUP('Pilotage charte de postes'!J49*10,Tableau_Lancer_la_requête_à_partir_de_apps_U_B11_1[],2,FALSE),"") -> 308446000 | J49: =IFERROR(VLOOKUP('Pilotage charte de postes'!K49*10,Tableau_Lancer_la_requête_à_partir_de_apps_U_B11_1[],2,FALSE),"") -> 24378100 | K49: =IFERROR(VLOOKUP('Pilotage charte de postes'!L49*10,Tableau_Lancer_la_requête_à_partir_de_apps_U_B11_1[],2,FALSE),"") -> 332824100
A50: 85 -- Exploitation minière | D50: =IFERROR(VLOOKUP('Pilotage charte de postes'!D50*10,Tableau_Lancer_la_requête_à_partir_de_apps_U_B11_1[],2,FALSE),"") -> 1351 | E50: =IFERROR(VLOOKUP('Pilotage charte de postes'!E50*10,Tableau_Lancer_la_requête_à_partir_de_apps_U_B11_1[],2,FALSE),"") -> 439524200 | F50: =IFERROR(VLOOKUP('Pilotage charte de postes'!F50*10,Tableau_Lancer_la_requête_à_partir_de_apps_U_B11_1[],2,FALSE),"") -> 1320309200 | G50: =IFERROR(VLOOKUP('Pilotage charte de postes'!H50*10,Tableau_Lancer_la_requête_à_partir_de_apps_U_B11_1[],2,FALSE),"") -> 1759833400 | H50: =IFERROR(VLOOKUP('Pilotage charte de postes'!I50*10,Tableau_Lancer_la_requête_à_partir_de_apps_U_B11_1[],2,FALSE),"") -> 65 | I50: =IFERROR(VLOOKUP('Pilotage charte de postes'!J50*10,Tableau_Lancer_la_requête_à_partir_de_apps_U_B11_1[],2,FALSE),"") -> 51548920 | J50: =IFERROR(VLOOKUP('Pilotage charte de postes'!K50*10,Tableau_Lancer_la_requête_à_partir_de_apps_U_B11_1[],2,FALSE),"") -> 10486576 | K50: =IFERROR(VLOOKUP('Pilotage charte de postes'!L50*10,Tableau_Lancer_la_requête_à_partir_de_apps_U_B11_1[],2,FALSE),"") -> 62035496
A51: 9 --- TOTALE DE LA CATÉGORIE IMMEUBLES NON EXPLOITÉS, ÉTENDUES D'EAU | D51: =IFERROR(VLOOKUP('Pilotage charte de postes'!D51*10,Tableau_Lancer_la_requête_à_partir_de_apps_U_B11_1[],2,FALSE),"") -> 377281 | E51: =IFERROR(VLOOKUP('Pilotage charte de postes'!E51*10,Tableau_Lancer_la_requête_à_partir_de_apps_U_B11_1[],2,FALSE),"") -> 25885069107 | F51: =IFERROR(VLOOKUP('Pilotage charte de postes'!F51*10,Tableau_Lancer_la_requête_à_partir_de_apps_U_B11_1[],2,FALSE),"") -> 596842049 | G51: =IFERROR(VLOOKUP('Pilotage charte de postes'!H51*10,Tableau_Lancer_la_requête_à_partir_de_apps_U_B11_1[],2,FALSE),"") -> 26481911156 | H51: =IFERROR(VLOOKUP('Pilotage charte de postes'!I51*10,Tableau_Lancer_la_requête_à_partir_de_apps_U_B11_1[],2,FALSE),"") -> 78493 | I51: =IFERROR(VLOOKUP('Pilotage charte de postes'!J51*10,Tableau_Lancer_la_requête_à_partir_de_apps_U_B11_1[],2,FALSE),"") -> 15107761771 | J51: =IFERROR(VLOOKUP('Pilotage charte de postes'!K51*10,Tableau_Lancer_la_requête_à_partir_de_apps_U_B11_1[],2,FALSE),"") -> 59343078 | K51: =IFERROR(VLOOKUP('Pilotage charte de postes'!L51*10,Tableau_Lancer_la_requête_à_partir_de_apps_U_B11_1[],2,FALSE),"") -> 15167104849
A52: 91 -- Terrains vagues | D52: =IFERROR(VLOOKUP('Pilotage charte de postes'!D52*10,Tableau_Lancer_la_requête_à_partir_de_apps_U_B11_1[],2,FALSE),"") -> 323131 | E52: =IFERROR(VLOOKUP('Pilotage charte de postes'!E52*10,Tableau_Lancer_la_requête_à_partir_de_apps_U_B11_1[],2,FALSE),"") -> 22400095115 | F52: =IFERROR(VLOOKUP('Pilotage charte de postes'!F52*10,Tableau_Lancer_la_requête_à_partir_de_apps_U_B11_1[],2,FALSE),"") -> 9798700 | G52: =IFERROR(VLOOKUP('Pilotage charte de postes'!H52*10,Tableau_Lancer_la_requête_à_partir_de_apps_U_B11_1[],2,FALSE),"") -> 22409893815 | H52: =IFERROR(VLOOKUP('Pilotage charte de postes'!I52*10,Tableau_Lancer_la_requête_à_partir_de_apps_U_B11_1[],2,FALSE),"") -> 71591 | I52: =IFERROR(VLOOKUP('Pilotage charte de postes'!J52*10,Tableau_Lancer_la_requête_à_partir_de_apps_U_B11_1[],2,FALSE),"") -> 10526723536 | J52: =IFERROR(VLOOKUP('Pilotage charte de postes'!K52*10,Tableau_Lancer_la_requête_à_partir_de_apps_U_B11_1[],2,FALSE),"") -> 1708000 | K52: =IFERROR(VLOOKUP('Pilotage charte de postes'!L52*10,Tableau_Lancer_la_requête_à_partir_de_apps_U_B11_1[],2,FALSE),"") -> 10528431536
A53: 9220 -- Forêts inexploitées qui ne sont pas des réserves | D53: =IFERROR(VLOOKUP('Pilotage charte de postes'!D53*10,Tableau_Lancer_la_requête_à_partir_de_apps_U_B11_1[],2,FALSE),"") -> 44032 | E53: =IFERROR(VLOOKUP('Pilotage charte de postes'!E53*10,Tableau_Lancer_la_requête_à_partir_de_apps_U_B11_1[],2,FALSE),"") -> 2576732670 | F53: =IFERROR(VLOOKUP('Pilotage charte de postes'!F53*10,Tableau_Lancer_la_requête_à_partir_de_apps_U_B11_1[],2,FALSE),"") -> 65690800 | G53: =IFERROR(VLOOKUP('Pilotage charte de postes'!H53*10,Tableau_Lancer_la_requête_à_partir_de_apps_U_B11_1[],2,FALSE),"") -> 2642423470 | H53: =IFERROR(VLOOKUP('Pilotage charte de postes'!I53*10,Tableau_Lancer_la_requête_à_partir_de_apps_U_B11_1[],2,FALSE),"") -> 3997 | I53: =IFERROR(VLOOKUP('Pilotage charte de postes'!J53*10,Tableau_Lancer_la_requête_à_partir_de_apps_U_B11_1[],2,FALSE),"") -> 3685568431 | J53: =IFERROR(VLOOKUP('Pilotage charte de postes'!K53*10,Tableau_Lancer_la_requête_à_partir_de_apps_U_B11_1[],2,FALSE),"") -> 736200 | K53: =IFERROR(VLOOKUP('Pilotage charte de postes'!L53*10,Tableau_Lancer_la_requête_à_partir_de_apps_U_B11_1[],2,FALSE),"") -> 3686304631
A54: TOTAL DU RÔLE D'ÉVALUATION FONCIÈRE | D54: =IFERROR(VLOOKUP('Pilotage charte de postes'!D54*10,Tableau_Lancer_la_requête_à_partir_de_apps_U_B11_1[],2,FALSE),"") -> 3475701 | E54: =IFERROR(VLOOKUP('Pilotage charte de postes'!E54*10,Tableau_Lancer_la_requête_à_partir_de_apps_U_B11_1[],2,FALSE),"") -> 428326735934 | F54: =IFERROR(VLOOKUP('Pilotage charte de postes'!F54*10,Tableau_Lancer_la_requête_à_partir_de_apps_U_B11_1[],2,FALSE),"") -> 780419966279 | G54: =IFERROR(VLOOKUP('Pilotage charte de postes'!H54*10,Tableau_Lancer_la_requête_à_partir_de_apps_U_B11_1[],2,FALSE),"") -> 1208746702213 | H54: =IFERROR(VLOOKUP('Pilotage charte de postes'!I54*10,Tableau_Lancer_la_requête_à_partir_de_apps_U_B11_1[],2,FALSE),"") -> 183412 | I54: =IFERROR(VLOOKUP('Pilotage charte de postes'!J54*10,Tableau_Lancer_la_requête_à_partir_de_apps_U_B11_1[],2,FALSE),"") -> 58486938098 | J54: =IFERROR(VLOOKUP('Pilotage charte de postes'!K54*10,Tableau_Lancer_la_requête_à_partir_de_apps_U_B11_1[],2,FALSE),"") -> 78896997241 | K54: =IFERROR(VLOOKUP('Pilotage charte de postes'!L54*10,Tableau_Lancer_la_requête_à_partir_de_apps_U_B11_1[],2,FALSE),"") -> 137383935339

Sheet Charte des codes de poste
A1: CHARTE DES DONNÉES DE L'ÉVALUATION FONCIÈRE
A4: CATÉGORIE (Utilisation) | D4: VALEURS IMPOSABLES | H4: VALEURS NON IMPOSABLES
D5: NOMBRE | E5: TERRAINS | F5: BÂTIMENTS | G5: IMMEUBLES | H5: NOMBRE | I5: TERRAINS | J5: BÂTIMENTS | K5: IMMEUBLES
A6: 1-- TOTALE DE LA CATÉGORIE RÉSIDENTIELLE | D6: 300001 | E6: 300002 | F6: 300003 | G6: 300004 | H6: 300005 | I6: 300006 | J6: 300007 | K6: 300008
A7: 10 -- Totale Logements | D7: 300010 | E7: 300011 | F7: 300012 | G7: 300013 | H7: 300014 | I7: 300015 | J7: 300016 | K7: 300017
B8: 1 logement « condominium » | D8: 300019 | E8: 300020 | F8: 300021 | G8: 300022 | H8: 300023 | I8: 300024 | J8: 300025 | K8: 300026
B9: 1 logement « sauf condominium » | D9: 300028 | E9: 300029 | F9: 300030 | G9: 300031 | H9: 300032 | I9: 300033 | J9: 300034 | K9: 300035
B10: 2 logements | D10: 300037 | E10: 300038 | F10: 300039 | G10: 300040 | H10: 300041 | I10: 300042 | J10: 300043 | K10: 300044
B11: 3 logements | D11: 300046 | E11: 300047 | F11: 300048 | G11: 300049 | H11: 300050 | I11: 300051 | J11: 300052 | K11: 300053
B12: 4 logements | D12: 300055 | E12: 300056 | F12: 300057 | G12: 300058 | H12: 300059 | I12: 300060 | J12: 300061 | K12: 300062
B13: 5 logements | D13: 300064 | E13: 300065 | F13: 300066 | G13: 300067 | H13: 300068 | I13: 300069 | J13: 300070 | K13: 300071
B14: 6 à 9 logements | D14: 300073 | E14: 300074 | F14: 300075 | G14: 300076 | H14: 300077 | I14: 300078 | J14: 300079 | K14: 300080
B15: 10 à 19 logements | D15: 300082 | E15: 300083 | F15: 300084 | G15: 300085 | H15: 300086 | I15: 300087 | J15: 300088 | K15: 300089
B16: 20 à 29 logements | D16: 300091 | E16: 300092 | F16: 300093 | G16: 300094 | H16: 300095 | I16: 300096 | J16: 300097 | K16: 300098
B17: 30 à 49 logements | D17: 300100 | E17: 300101 | F17: 300102 | G17: 300103 | H17: 300104 | I17: 300105 | J17: 300106 | K17: 300107
B18: 50 à 99 logements | D18: 300109 | E18: 300110 | F18: 300111 | G18: 300112 | H18: 300113 | I18: 300114 | J18: 300115 | K18: 300116
B19: 100 à 199 logements | D19: 300118 | E19: 300119 | F19: 300120 | G19: 300121 | H19: 300122 | I19: 300123 | J19: 300124 | K19: 300125
B20: 200 logements et plus | D20: 300127 | E20: 300128 | F20: 300129 | G20: 300130 | H20: 300131 | I20: 300132 | J20: 300133 | K20: 300134
A21: 11 -- Chalets, maisons de villégiatures | D21: 300136 | E21: 300137 | F21: 300138 | G21: 300139 | H21: 300140 | I21: 300141 | J21: 300142 | K21: 300143
A22: 12 -- Maisons mobiles, roulottes | D22: 300145 | E22: 300146 | F22: 300147 | G22: 300148 | H22: 300149 | I22: 300150 | J22: 300151 | K22: 300152
A23: 15 -- Habitations en commun | D23: 300154 | E23: 300155 | F23: 300156 | G23: 300157 | H23: 300158 | I23: 300159 | J23: 300160 | K23: 300161
A24: 16 -- Hôtels résidentiels | D24: 300163 | E24: 300164 | F24: 300165 | G24: 300166 | H24: 300167 | I24: 300168 | J24: 300169 | K24: 300170
A25: 17 -- Parcs de roulottes et de maisons mobiles | D25: 300172 | E25: 300173 | F25: 300174 | G25: 300175 | H25: 300176 | I25: 300177 | J25: 300178 | K25: 300179
A26: 18 - 19 -- Autres immeubles résidentiels | D26: 300442 | E26: 300443 | F26: 300444 | G26: 300445 | H26: 300446 | I26: 300447 | J26: 300448 | K26: 300449
A27: 2 - 3 --TOTALE DE LA CATÉGORIE INDUSTRIES MANUFACTURIÈRES | D27: 300199 | E27: 300200 | F27: 300201 | G27: 300202 | H27: 300203 | I27: 300204 | J27: 300205 | K27: 300206
A28: 2 - 3 -- Industries manufacturières sauf « condominium » | D28: 300208 | E28: 300209 | F28: 300210 | G28: 300211 | H28: 300212 | I28: 300213 | J28: 300214 | K28: 300215
A29: 2 - 3 -- Industries manufacturières « condominium » | D29: 300217 | E29: 300218 | F29: 300219 | G29: 300220 | H29: 300221 | I29: 300222 | J29: 300223 | K29: 300224
A30: 4 --- TOTALE DE LA CATÉGORIE TRANSPORTS, COMM., SERVICES PUBLICS | D30: 300226 | E30: 300227 | F30: 300228 | G30: 300229 | H30: 300230 | I30: 300231 | J30: 300232 | K30: 300233
A31: 4111 Chemin de fer | D31: 300235 | E31: 300236 | F31: 300237 | G31: 300238 | H31: 300239 | I31: 300240 | J31: 300241 | K31: 300242
A32: 46 -- Terrains et garages de stationnement | D32: 300244 | E32: 300245 | F32: 300246 | G32: 300247 | H32: 300248 | I32: 300249 | J32: 300250 | K32: 300251
A33: 5 --- TOTALE DE LA CATÉGORIE COMMERCIALE | D33: 300253 | E33: 300254 | F33: 300255 | G33: 300256 | H33: 300257 | I33: 300258 | J33: 300259 | K33: 300260
A34: 50 -- Centres et immeubles commerciaux | D34: 300262 | E34: 300263 | F34: 300264 | G34: 300265 | H34: 300266 | I34: 300267 | J34: 300268 | K34: 300269
A35: 51 -- Ventes en gros | D35: 300271 | E35: 300272 | F35: 300273 | G35: 300274 | H35: 300275 | I35: 300276 | J35: 300277 | K35: 300278
A36: 52 à 59 -- Ventes au détail (sauf 583 -) | D36: 300451 | E36: 300452 | F36: 300453 | G36: 300454 | H36: 300455 | I36: 300456 | J36: 300457 | K36: 300458
A37: 583 -- Hôtels, motels et maisons de touristes | D37: 300460 | E37: 300461 | F37: 300462 | G37: 300463 | H37: 300464 | I37: 300465 | J37: 300466 | K37: 300467
A38: 5 --- Commerciale sauf « condominium » | D38: 300289 | E38: 300290 | F38: 300291 | G38: 300292 | H38: 300293 | I38: 300294 | J38: 300295 | K38: 300296
A39: 5 --- Commerciale « condominium » | D39: 300298 | E39: 300299 | F39: 300300 | G39: 300301 | H39: 300302 | I39: 300303 | J39: 300304 | K39: 300305
A40: 6 ---TOTALE DE LA CATÉGORIE SERVICES | D40: 300307 | E40: 300308 | F40: 300309 | G40: 300310 | H40: 300311 | I40: 300312 | J40: 300313 | K40: 300314
A41: 60 -- Immeubles à bureaux | D41: 300316 | E41: 300317 | F41: 300318 | G41: 300319 | H41: 300320 | I41: 300321 | J41: 300322 | K41: 300323
A42: 6 -- Services sauf « condominium » | D42: 300325 | E42: 300326 | F42: 300327 | G42: 300328 | H42: 300329 | I42: 300330 | J42: 300331 | K42: 300332
A43: 6 -- Services « condominium » | D43: 300334 | E43: 300335 | F43: 300336 | G43: 300337 | H43: 300338 | I43: 300339 | J43: 300340 | K43: 300341
A44: 7 --- TOTALE DE LA CATÉGORIE CULTURELLE, RÉCRÉATIVE ET DE LOISIRS | D44: 300343 | E44: 300344 | F44: 300345 | G44: 300346 | H44: 300347 | I44: 300348 | J44: 300349 | K44: 300350
A45: 7411 - 7412 Terrains de golf | D45: 300352 | E45: 300353 | F45: 300354 | G45: 300355 | H45: 300356 | I45: 300357 | J45: 300358 | K45: 300359
A46: 76 -- Parcs | D46: 300361 | E46: 300362 | F46: 300363 | G46: 300364 | H46: 300365 | I46: 300366 | J46: 300367 | K46: 300368
A47: 8 --- TOTALE DE LA CATÉGORIE PRODUCTION, EXT. DE RICHESSES NAT. | D47: 300370 | E47: 300371 | F47: 300372 | G47: 300373 | H47: 300374 | I47: 300375 | J47: 300376 | K47: 300377
A48: 81 -- Agriculture | D48: 300379 | E48: 300380 | F48: 300381 | G48: 300382 | H48: 300383 | I48: 300384 | J48: 300385 | K48: 300386
A49: 83 -- Exploitation forestière | D49: 300388 | E49: 300389 | F49: 300390 | G49: 300391 | H49: 300392 | I49: 300393 | J49: 300394 | K49: 300395
A50: 85 -- Exploitation minière | D50: 300397 | E50: 300398 | F50: 300399 | G50: 300400 | H50: 300401 | I50: 300402 | J50: 300403 | K50: 300404
A51: 9 --- TOTALE DE LA CATÉGORIE IMMEUBLES NON EXPLOITÉS, ÉTENDUES D'EAU | D51: 300406 | E51: 300407 | F51: 300408 | G51: 300409 | H51: 300410 | I51: 300411 | J51: 300412 | K51: 300413
A52: 91 -- Terrains vagues | D52: 300415 | E52: 300416 | F52: 300417 | G52: 300418 | H52: 300419 | I52: 300420 | J52: 300421 | K52: 300422
A53: 9220 -- Forêts inexploitées qui ne sont pas des réserves | D53: 300424 | E53: 300425 | F53: 300426 | G53: 300427 | H53: 300428 | I53: 300429 | J53: 300430 | K53: 300431
A54: TOTAL DU RÔLE D'ÉVALUATION FONCIÈRE | D54: 300433 | E54: 300434 | F54: 300435 | G54: 300436 | H54: 300437 | I54: 300438 | J54: 300439 | K54: 300440

Sheet Pilotage charte de postes (hidden)
A1: CHARTE DES DONNÉES DE L'ÉVALUATION FONCIÈRE
A4: CATÉGORIE (Utilisation) | D4: VALEURS IMPOSABLES | I4: VALEURS NON IMPOSABLES
D5: NOMBRE | E5: TERRAINS | F5: BÂTIMENTS | H5: IMMEUBLES | I5: NOMBRE | J5: TERRAINS | K5: BÂTIMENTS | L5: IMMEUBLES
A6: 1-- TOTALE DE LA CATÉGORIE RÉSIDENTIELLE | D6: 300001 | E6: 300002 | F6: 300003 | H6: 300004 | I6: 300005 | J6: 300006 | K6: 300007 | L6: 300008
A7: 10 -- Totale Logements | D7: 300010 | E7: 300011 | F7: 300012 | H7: 300013 | I7: 300014 | J7: 300015 | K7: 300016 | L7: 300017
B8: 1 logement « condominium » | D8: 300019 | E8: 300020 | F8: 300021 | H8: 300022 | I8: 300023 | J8: 300024 | K8: 300025 | L8: 300026
B9: 1 logement « sauf condominium » | D9: 300028 | E9: 300029 | F9: 300030 | H9: 300031 | I9: 300032 | J9: 300033 | K9: 300034 | L9: 300035
B10: 2 logements | D10: 300037 | E10: 300038 | F10: 300039 | H10: 300040 | I10: 300041 | J10: 300042 | K10: 300043 | L10: 300044
B11: 3 logements | D11: 300046 | E11: 300047 | F11: 300048 | H11: 300049 | I11: 300050 | J11: 300051 | K11: 300052 | L11: 300053
B12: 4 logements | D12: 300055 | E12: 300056 | F12: 300057 | H12: 300058 | I12: 300059 | J12: 300060 | K12: 300061 | L12: 300062
B13: 5 logements | D13: 300064 | E13: 300065 | F13: 300066 | H13: 300067 | I13: 300068 | J13: 300069 | K13: 300070 | L13: 300071
B14: 6 à 9 logements | D14: 300073 | E14: 300074 | F14: 300075 | H14: 300076 | I14: 300077 | J14: 300078 | K14: 300079 | L14: 300080
B15: 10 à 19 logements | D15: 300082 | E15: 300083 | F15: 300084 | H15: 300085 | I15: 300086 | J15: 300087 | K15: 300088 | L15: 300089
B16: 20 à 29 logements | D16: 300091 | E16: 300092 | F16: 300093 | H16: 300094 | I16: 300095 | J16: 300096 | K16: 300097 | L16: 300098
B17: 30 à 49 logements | D17: 300100 | E17: 300101 | F17: 300102 | H17: 300103 | I17: 300104 | J17: 300105 | K17: 300106 | L17: 300107
B18: 50 à 99 logements | D18: 300109 | E18: 300110 | F18: 300111 | H18: 300112 | I18: 300113 | J18: 300114 | K18: 300115 | L18: 300116
B19: 100 à 199 logements | D19: 300118 | E19: 300119 | F19: 300120 | H19: 300121 | I19: 300122 | J19: 300123 | K19: 300124 | L19: 300125
B20: 200 logements et plus | D20: 300127 | E20: 300128 | F20: 300129 | H20: 300130 | I20: 300131 | J20: 300132 | K20: 300133 | L20: 300134
A21: 11 -- Chalets, maisons de villégiatures | D21: 300136 | E21: 300137 | F21: 300138 | H21: 300139 | I21: 300140 | J21: 300141 | K21: 300142 | L21: 300143
A22: 12 -- Maisons mobiles, roulottes | D22: 300145 | E22: 300146 | F22: 300147 | H22: 300148 | I22: 300149 | J22: 300150 | K22: 300151 | L22: 300152
A23: 15 -- Habitations en commun | D23: 300154 | E23: 300155 | F23: 300156 | H23: 300157 | I23: 300158 | J23: 300159 | K23: 300160 | L23: 300161
A24: 16 -- Hôtels résidentiels | D24: 300163 | E24: 300164 | F24: 300165 | H24: 300166 | I24: 300167 | J24: 300168 | K24: 300169 | L24: 300170
A25: 17 -- Parcs de roulottes et de maisons mobiles | D25: 300172 | E25: 300173 | F25: 300174 | H25: 300175 | I25: 300176 | J25: 300177 | K25: 300178 | L25: 300179
A26: 18 - 19 -- Autres immeubles résidentiels | D26: 300442 | E26: 300443 | F26: 300444 | H26: 300445 | I26: 300446 | J26: 300447 | K26: 300448 | L26: 300449
A27: 2 - 3 --TOTALE DE LA CATÉGORIE INDUSTRIES MANUFACTURIÈRES | D27: 300199 | E27: 300200 | F27: 300201 | H27: 300202 | I27: 300203 | J27: 300204 | K27: 300205 | L27: 300206
A28: 2 - 3 -- Industries manufacturières sauf « condominium » | D28: 300208 | E28: 300209 | F28: 300210 | H28: 300211 | I28: 300212 | J28: 300213 | K28: 300214 | L28: 300215
A29: 2 - 3 -- Industries manufacturières « condominium » | D29: 300217 | E29: 300218 | F29: 300219 | H29: 300220 | I29: 300221 | J29: 300222 | K29: 300223 | L29: 300224
A30: 4 --- TOTALE DE LA CATÉGORIE TRANSPORTS, COMM., SERVICES PUBLICS | D30: 300226 | E30: 300227 | F30: 300228 | H30: 300229 | I30: 300230 | J30: 300231 | K30: 300232 | L30: 300233
A31: 4111 Chemin de fer | D31: 300235 | E31: 300236 | F31: 300237 | H31: 300238 | I31: 300239 | J31: 300240 | K31: 300241 | L31: 300242
A32: 46 -- Terrains et garages de stationnement | D32: 300244 | E32: 300245 | F32: 300246 | H32: 300247 | I32: 300248 | J32: 300249 | K32: 300250 | L32: 300251
A33: 5 --- TOTALE DE LA CATÉGORIE COMMERCIALE | D33: 300253 | E33: 300254 | F33: 300255 | H33: 300256 | I33: 300257 | J33: 300258 | K33: 300259 | L33: 300260
A34: 50 -- Centres et immeubles commerciaux | D34: 300262 | E34: 300263 | F34: 300264 | H34: 300265 | I34: 300266 | J34: 300267 | K34: 300268 | L34: 300269
A35: 51 -- Ventes en gros | D35: 300271 | E35: 300272 | F35: 300273 | H35: 300274 | I35: 300275 | J35: 300276 | K35: 300277 | L35: 300278
A36: 52 à 59 -- Ventes au détail (sauf 583 -) | D36: 300451 | E36: 300452 | F36: 300453 | G36: 331002 | H36: 300454 | I36: 300455 | J36: 300456 | K36: 300457 | L36: 300458
A37: 583 -- Hôtels, motels et maisons de touristes | D37: 300460 | E37: 300461 | F37: 300462 | G37: 332002 | H37: 300463 | I37: 300464 | J37: 300465 | K37: 300466 | L37: 300467
A38: 5 --- Commerciale sauf « condominium » | D38: 300289 | E38: 300290 | F38: 300291 | G38: 333002 | H38: 300292 | I38: 300293 | J38: 300294 | K38: 300295 | L38: 300296
A39: 5 --- Commerciale « condominium » | D39: 300298 | E39: 300299 | F39: 300300 | H39: 300301 | I39: 300302 | J39: 300303 | K39: 300304 | L39: 300305
A40: 6 ---TOTALE DE LA CATÉGORIE SERVICES | D40: 300307 | E40: 300308 | F40: 300309 | H40: 300310 | I40: 300311 | J40: 300312 | K40: 300313 | L40: 300314
A41: 60 -- Immeubles à bureaux | D41: 300316 | E41: 300317 | F41: 300318 | H41: 300319 | I41: 300320 | J41: 300321 | K41: 300322 | L41: 300323
A42: 6 -- Services sauf « condominium » | D42: 300325 | E42: 300326 | F42: 300327 | H42: 300328 | I42: 300329 | J42: 300330 | K42: 300331 | L42: 300332
A43: 6 -- Services « condominium » | D43: 300334 | E43: 300335 | F43: 300336 | H43: 300337 | I43: 300338 | J43: 300339 | K43: 300340 | L43: 300341
A44: 7 --- TOTALE DE LA CATÉGORIE CULTURELLE, RÉCRÉATIVE ET DE LOISIRS | D44: 300343 | E44: 300344 | F44: 300345 | H44: 300346 | I44: 300347 | J44: 300348 | K44: 300349 | L44: 300350
A45: 7411 - 7412 Terrains de golf | D45: 300352 | E45: 300353 | F45: 300354 | H45: 300355 | I45: 300356 | J45: 300357 | K45: 300358 | L45: 300359
A46: 76 -- Parcs | D46: 300361 | E46: 300362 | F46: 300363 | H46: 300364 | I46: 300365 | J46: 300366 | K46: 300367 | L46: 300368
A47: 8 --- TOTALE DE LA CATÉGORIE PRODUCTION, EXT. DE RICHESSES NAT. | D47: 300370 | E47: 300371 | F47: 300372 | H47: 300373 | I47: 300374 | J47: 300375 | K47: 300376 | L47: 300377
A48: 81 -- Agriculture | D48: 300379 | E48: 300380 | F48: 300381 | H48: 300382 | I48: 300383 | J48: 300384 | K48: 300385 | L48: 300386
A49: 83 -- Exploitation forestière | D49: 300388 | E49: 300389 | F49: 300390 | H49: 300391 | I49: 300392 | J49: 300393 | K49: 300394 | L49: 300395
A50: 85 -- Exploitation minière | D50: 300397 | E50: 300398 | F50: 300399 | H50: 300400 | I50: 300401 | J50: 300402 | K50: 300403 | L50: 300404
A51: 9 --- TOTALE DE LA CATÉGORIE IMMEUBLES NON EXPLOITÉS, ÉTENDUES D'EAU | D51: 300406 | E51: 300407 | F51: 300408 | H51: 300409 | I51: 300410 | J51: 300411 | K51: 300412 | L51: 300413
A52: 91 -- Terrains vagues | D52: 300415 | E52: 300416 | F52: 300417 | H52: 300418 | I52: 300419 | J52: 300420 | K52: 300421 | L52: 300422
A53: 9220 -- Forêts inexploitées qui ne sont pas des réserves | D53: 300424 | E53: 300425 | F53: 300426 | H53: 300427 | I53: 300428 | J53: 300429 | K53: 300430 | L53: 300431
A54: TOTAL DU RÔLE D'ÉVALUATION FONCIÈRE | D54: 300433 | E54: 300434 | F54: 300435 | H54: 300436 | I54: 300437 | J54: 300438 | K54: 300439 | L54: 300440

Sheet PilotageDonnees (hidden)
A1: code | B1: valeur
A2: 3000010 | B2: 2808549
A3: 3000011 | B3: 2808549
A4: 3000020 | B4: 305575602674
A5: 3000021 | B5: 329109301432
A6: 3000030 | B6: 641272674481
A7: 3000031 | B7: 690740840557
A8: 3000040 | B8: 946848277155
A9: 3000041 | B9: 1019850141989
A10: 3000050 | B10: 4917
A11: 3000051 | B11: 4917
A12: 3000060 | B12: 2174345876
A13: 3000061 | B13: 2399813449
A14: 3000070 | B14: 4274915803
A15: 3000071 | B15: 4626487222
A16: 3000080 | B16: 6449261679
A17: 3000081 | B17: 7026300672
A18: 3000090 | B18: 33262828434
A19: 3000091 | B19: 33262828434
A20: 3000100 | B20: 2548288
A21: 3000101 | B21: 2548288
A22: 3000110 | B22: 289963053060
A23: 3000111 | B23: 312589828499
A24: 3000120 | B24: 608420562426
A25: 3000121 | B25: 655982778223
A26: 3000130 | B26: 898383615486
A27: 3000131 | B27: 968572606721
A28: 3000140 | B28: 1706
A29: 3000141 | B29: 1706
A30: 3000150 | B30: 303712363
A31: 3000151 | B31: 334399409
A32: 3000160 | B32: 712375770
A33: 3000161 | B33: 782383337
A34: 3000170 | B34: 1016088133
A35: 3000171 | B35: 1116782747
A36: 3000180 | B36: 11808353788
A37: 3000181 | B37: 11808353788
A38: 3000190 | B38: 366527
A39: 3000191 | B39: 366527
A40: 3000200 | B40: 20778586207
A41: 3000201 | B41: 23000151149
A42: 3000210 | B42: 89343496100
A43: 3000211 | B43: 99136414100
A44: 3000220 | B44: 110122082307
A45: 3000221 | B45: 122136565249
A46: 3000230 | B46: 6
A47: 3000231 | B47: 6
A48: 3000240 | B48: 472600
A49: 3000241 | B49: 516470
A50: 3000250 | B50: 1418700
A51: 3000251 | B51: 1528085
A52: 3000260 | B52: 1891300
A53: 3000261 | B53: 2044555
A54: 3000270 | B54: 57474343
A55: 3000271 | B55: 57474343
A56: 3000280 | B56: 1799690
A57: 3000281 | B57: 1799690
A58: 3000290 | B58: 200577050316
A59: 3000291 | B59: 213301050708
A60: 3000300 | B60: 355220069643
A61: 3000301 | B61: 375768417277
A62: 3000310 | B62: 555797119959
A63: 3000311 | B63: 589069467985
A64: 3000320 | B64: 1337
A65: 3000321 | B65: 1337
A66: 3000330 | B66: 123480000
A67: 3000331 | B67: 133998147
A68: 3000340 | B68: 215025650
A69: 3000341 | B69: 231612422
A70: 3000350 | B70: 338505650
A71: 3000351 | B71: 365610569
A72: 3000360 | B72: 10632331159
A73: 3000361 | B73: 10632331159
A74: 3000370 | B74: 190439
A75: 3000371 | B75: 190439
A76: 3000380 | B76: 24334846600
A77: 3000381 | B77: 26931266179
A78: 3000390 | B78: 45786671002
A79: 3000391 | B79: 50378750541
A80: 3000400 | B80: 70121517602
A81: 3000401 | B81: 77310016720
A82: 3000410 | B82: 188
A83: 3000411 | B83: 188
A84: 3000420 | B84: 34437600
A85: 3000421 | B85: 38069069
A86: 3000430 | B86: 55059400
A87: 3000431 | B87: 60196100
A88: 3000440 | B88: 89497000
A89: 3000441 | B89: 98265169
A90: 3000450 | B90: 804957977
A91: 3000451 | B91: 804957977
A92: 3000460 | B92: 85458
A93: 3000461 | B93: 85458
A94: 3000470 | B94: 13942710200
A95: 3000471 | B95: 15629044417
A96: 3000480 | B96: 28127548701
A97: 3000481 | B97: 31406250239
A98: 3000490 | B98: 42070258901
A99: 3000491 | B99: 47035294656
A100: 3000500 | B100: 41
A101: 3000501 | B101: 41
A102: 3000510 | B102: 7606900
A103: 3000511 | B103: 8534391
A104: 3000520 | B104: 14959800
A105: 3000521 | B105: 16716600
A106: 3000530 | B106: 22566700
A107: 3000531 | B107: 25250991
A108: 3000540 | B108: 138955993
A109: 3000541 | B109: 138955993
A110: 3000550 | B110: 39974
A111: 3000551 | B111: 39974
A112: 3000560 | B112: 6347115070
A113: 3000561 | B113: 7105783273
A114: 3000570 | B114: 14147745280
A115: 3000571 | B115: 15643213047
A116: 3000580 | B116: 20494860350
A117: 3000581 | B117: 22748996320
A118: 3000590 | B118: 27
A119: 3000591 | B119: 27
A120: 3000600 | B120: 4864130
A121: 3000601 | B121: 5440461
A122: 3000610 | B122: 19519720
A123: 3000611 | B123: 21035901
A124: 3000620 | B124: 24383850
A125: 3000621 | B125: 26476362
A126: 3000630 | B126: 62461543
A127: 3000631 | B127: 62461543
A128: 3000640 | B128: 11829
A129: 3000641 | B129: 11829
A130: 3000650 | B130: 2562376500
A131: 3000651 | B131: 2923700675
A132: 3000660 | B132: 5227985200
A133: 3000661 | B133: 5922490884
A134: 3000670 | B134: 7790361700
A135: 3000671 | B135: 8846191559
A136: 3000680 | B136: 9
A137: 3000681 | B137: 9
A138: 3000690 | B138: 3231500
A139: 3000691 | B139: 3790503
A140: 3000700 | B140: 5690500
A141: 3000701 | B141: 6572131
A142: 3000710 | B142: 8922000
A143: 3000711 | B143: 10362634
A144: 3000720 | B144: 10268556
A145: 3000721 | B145: 10268556
A146: 3000730 | B146: 35260
A147: 3000731 | B147: 35260
A148: 3000740 | B148: 7393052712
A149: 3000741 | B149: 8140356643
A150: 3000750 | B150: 18539733130
A151: 3000751 | B151: 20195752287
A152: 3000760 | B152: 25932785842
A153: 3000761 | B153: 28336108930
A154: 3000770 | B154: 33
A155: 3000771 | B155: 33
A156: 3000780 | B156: 11329088
A157: 3000781 | B157: 12210026
A158: 3000790 | B158: 22623670
A159: 3000791 | B159: 24855863
A160: 3000800 | B160: 33952758
A161: 3000801 | B161: 37065889
A162: 3000810 | B162: 50913530
A163: 3000811 | B163: 50913530
A164: 3000820 | B164: 11132
A165: 3000821 | B165: 11132
A166: 3000830 | B166: 4023817119
A167: 3000831 | B167: 4416585291
A168: 3000840 | B168: 11956308491
A169: 3000841 | B169: 13001615002
A170: 3000850 | B170: 15980125610
A171: 3000851 | B171: 17418200292
A172: 3000860 | B172: 38
A173: 3000861 | B173: 38
A174: 3000870 | B174: 14947381
A175: 3000871 | B175: 16869033
A176: 3000880 | B176: 63183509
A177: 3000881 | B177: 71025072
A178: 3000890 | B178: 78130890
A179: 3000891 | B179: 87894106
A180: 3000900 | B180: 18779458
A181: 3000901 | B181: 18779458
A182: 3000910 | B182: 3387
A183: 3000911 | B183: 3387
A184: 3000920 | B184: 1943250800
A185: 3000921 | B185: 2155103270
A186: 3000930 | B186: 6202392700
A187: 3000931 | B187: 6820393674
A188: 3000940 | B188: 8145643500
A189: 3000941 | B189: 8975496944
A190: 3000950 | B190: 12
A191: 3000951 | B191: 12
A192: 3000960 | B192: 8414200
A193: 3000961 | B193: 9382392
A194: 3000970 | B194: 39156400
A195: 3000971 | B195: 42657558
A196: 3000980 | B196: 47570600
A197: 3000981 | B197: 52039950
A198: 3000990 | B198: 8343904
A199: 3000991 | B199: 8343904
A200: 3001000 | B200: 2518
... 675 more rows

Sheet ParametresConnexion (hidden)
A1: Pallier | B1: Serveur | C1: Port | D1: NomBD | E1: NomDSN | F1: URLDeBase | G1: Colonne1 | H1: Colonne2 | I1: Colonne3 | J1: Colonne4 | K1: Colonne5
A2: inactif | B2: inactif | C2: inactif | D2: inactif | E2: inactif | F2: inactif | G2: inactif | H2: inactif | I2: inactif | J2: inactif | K2: inactif
A6: anneeEnCours
A7: 2022
